{"text_format":"1","workbook":"xlsx","n_sheets":4,"sheets":["TRAZADOR","Hoja1","Instructivo para diligenciamien","Tablas Listas Desplegables"],"not_rendered":{"charts":0,"images":0,"macros":0,"external_links":0,"defined_names":3,"comments":1,"pivot_tables":0},"unopened":[],"bounds":{"document_bytes":16777216,"sheet_cells":100000,"rows_first":2000,"rows_last":500,"rows_between":2000,"halvings":0,"cell_chars":16384,"cell_head_chars":4096},"cells_cut":0,"cells_raw":0,"read":"whole","date_system":"1900"}

{"sheet":"TRAZADOR","index":0,"n_rows":106,"n_cols":90,"rows_kept":106,"cut":false,"hidden":false,"merged":[[3,0,3,8],[3,9,3,35],[3,36,3,62],[3,63,3,89],[1,1,1,6],[2,3,2,6]]}
["Marcación para la programación 2023 del Trazador Presupuestal - TPIEG"]
["Entidad / FDL"]
["Vigencia (fecha de marcación)",null,"Mes"]
["Información general",null,null,null,null,null,null,null,null,"Inversión",null,null,null,null,null,null,null,null,null,null,null,null,null,null,null,null,null,null,null,null,null,null,null,null,null,null,"Funcionamiento",null,null,null,null,null,null,null,null,null,null,null,null,null,null,null,null,null,null,null,null,null,null,null,null,null,null,"Operación"]
["Tipo (Inversión- funcionamiento-Operación)","Código Proyecto de Inversión/\nRubro","Elemento PEP","Productos\nPMR","Descripción Producto PMR","Trazador","Impacto","Codificación\nSubcategoría","Código y nombre indicador de Producto relacionado con trazador","Presupuesto Programado 2023","Presupuesto\nInversión Ejecutado (compromisos)\n (Solo para trazador) \nEnero","Presupuesto\nInversión Ejecutado (Giros)\n(Solo para trazador) \nEnero","Presupuesto\nInversión Ejecutado (compromisos)\n (Solo para trazador) \nFebrero","Presupuesto\nInversión Ejecutado (Giros)\n(Solo para trazador) \nFebrero","Presupuesto\nInversión Ejecutado (compromisos)\n (Solo para trazador) \nMarzo","Presupuesto\nInversión Ejecutado (Giros)\n(Solo para trazador) \nMarzo","Presupuesto\nInversión Ejecutado (compromisos)\n (Solo para trazador) \nAbril","Presupuesto\nInversión Ejecutado (Giros)\n(Solo para trazador) \nAbril","Presupuesto\nInversión Ejecutado (compromisos)\n (Solo para trazador) \nMayo","Presupuesto\nInversión Ejecutado (Giros)\n(Solo para trazador) \nMayo","Presupuesto\nInversión Ejecutado (compromisos)\n (Solo para trazador) \nJunio","Presupuesto\nInversión Ejecutado (Giros)\n(Solo para trazador) \nJunio","Presupuesto\nInversión Ejecutado (compromisos)\n (Solo para trazador) \nJulio","Presupuesto\nInversión Ejecutado (Giros)\n(Solo para trazador) \nJulio","Presupuesto\nInversión Ejecutado (compromisos)\n (Solo para trazador) \nAgosto","Presupuesto\nInversión Ejecutado (Giros)\n(Solo para trazador) \nAgosto","Presupuesto\nInversión Ejecutado (compromisos)\n (Solo para trazador) \nSeptiembre","Presupuesto\nInversión Ejecutado (Giros)\n(Solo para trazador) \nSeptiembre","Presupuesto\nInversión Ejecutado (compromisos)\n (Solo para trazador) \nOctubre","Presupuesto\nInversión Ejecutado (Giros)\n(Solo para trazador) \nOctubre","Presupuesto\nInversión Ejecutado (compromisos)\n (Solo para trazador) \nNoviembre","Presupuesto\nInversión Ejecutado (Giros)\n(Solo para trazador) \nNoviembre","Presupuesto\nInversión Ejecutado (compromisos)\n (Solo para trazador) \nDiciembre","Presupuesto\nInversión Ejecutado (Giros)\n(Solo para trazador) \nDiciembre","Total Compomisos \n2023","Total Giros\n2023","Presupuesto Funcionamiento\nProgramado (solo para trazador) 2023","Presupuesto\nFunciuonamiento  Ejecutado (compromisos)\n solo para trazador Enero","Presupuesto\nFunciuonamiento  Ejecutado (Giros)\n solo para trazador  Enero","Presupuesto\nFunciuonamiento  Ejecutado (compromisos)\n solo para trazador Febrero","Presupuesto\nFunciuonamiento  Ejecutado (Giros)\n solo para trazador  Febrero","Presupuesto\nFunciuonamiento  Ejecutado (compromisos)\n solo para trazador Marzo","Presupuesto\nFunciuonamiento  Ejecutado (Giros)\n solo para trazador  Marzo","Presupuesto\nFunciuonamiento  Ejecutado (compromisos)\n solo para trazador Abril","Presupuesto\nFunciuonamiento  Ejecutado (Giros)\n solo para trazador  Abril","Presupuesto\nFunciuonamiento  Ejecutado (compromisos)\n solo para trazador Mayo","Presupuesto\nFunciuonamiento  Ejecutado (Giros)\n solo para trazador  Mayo","Presupuesto\nFunciuonamiento  Ejecutado (compromisos)\n solo para trazador Junio","Presupuesto\nFunciuonamiento  Ejecutado (Giros)\n solo para trazador  Junio","Presupuesto\nFunciuonamiento  Ejecutado (compromisos)\n solo para trazador Julio","Presupuesto\nFunciuonamiento  Ejecutado (Giros)\n solo para trazador  Julio","Presupuesto\nFunciuonamiento  Ejecutado (compromisos)\n solo para trazador Agosto","Presupuesto\nFunciuonamiento  Ejecutado (Giros)\n solo para trazador  Agosto","Presupuesto\nFunciuonamiento  Ejecutado (compromisos)\n solo para trazador Septiembre","Presupuesto\nFunciuonamiento  Ejecutado (Giros)\n solo para trazador  Septiembre","Presupuesto\nFunciuonamiento  Ejecutado (compromisos)\n solo para trazador Octubre","Presupuesto\nFunciuonamiento  Ejecutado (Giros)\n solo para trazador  Octubre","Presupuesto\nFunciuonamiento  Ejecutado (compromisos)\n solo para trazador Noviembre","Presupuesto\nFunciuonamiento  Ejecutado (Giros)\n solo para trazador  Noviembre","Presupuesto\nFunciuonamiento  Ejecutado (compromisos)\n solo para trazador Diciembre","Presupuesto\nFunciuonamiento  Ejecutado (Giros)\n solo para trazador  Diciembre","Total Compromisos ","Total Giros","Presupuesto Operación\nProgramado (solo para trazador) 2023","Presupuesto\nOperación  Ejecutado (compromisos)\n solo para trazador \nEnero","Presupuesto\nOperación  Ejecutado (Giros)\nsolo para trazador Enero","Presupuesto\nOperación  Ejecutado (compromisos)\n solo para trazador \nFebrero","Presupuesto\nOperación  Ejecutado (Giros)\nsolo para trazador Febrero","Presupuesto\nOperación  Ejecutado (compromisos)\n solo para trazador \nMarzo ","Presupuesto\nOperación  Ejecutado (Giros)\nsolo para trazador Marzo ","Presupuesto\nOperación  Ejecutado (compromisos)\n solo para trazador \nAbril","Presupuesto\nOperación  Ejecutado (Giros)\nsolo para trazador Abril","Presupuesto\nOperación  Ejecutado (compromisos)\n solo para trazador \nMayo","Presupuesto\nOperación  Ejecutado (Giros)\nsolo para trazador Mayo","Presupuesto\nOperación  Ejecutado (compromisos)\n solo para trazador \nJunio","Presupuesto\nOperación  Ejecutado (Giros)\nsolo para trazador Junio","Presupuesto\nOperación  Ejecutado (compromisos)\n solo para trazador \nJulio","Presupuesto\nOperación  Ejecutado (Giros)\nsolo para trazador Julio","Presupuesto\nOperación  Ejecutado (compromisos)\n solo para trazador \nAgosto","Presupuesto\nOperación  Ejecutado (Giros)\nsolo para trazador Agosto","Presupuesto\nOperación  Ejecutado (compromisos)\n solo para trazador \nSeptiembre","Presupuesto\nOperación  Ejecutado (Giros)\nsolo para trazador \nSeptiembre","Presupuesto\nOperación  Ejecutado (compromisos)\n solo para trazador \nOctubre","Presupuesto\nOperación  Ejecutado (Giros)\nsolo para trazador Octubre","Presupuesto\nOperación  Ejecutado (compromisos)\n solo para trazador \nNoviembre","Presupuesto\nOperación  Ejecutado (Giros)\nsolo para trazador Noviembre","Presupuesto\nOperación  Ejecutado (compromisos)\n solo para trazador \nDiciembre","Presupuesto\nOperación  Ejecutado (Giros)\nsolo para trazador Diciembre","Total Comrpomisos ","Total Giros"]
[null,null,null,{"$f":"IF(RIGHT(C6,4)=\"Func\",\"N/A\",IF(C6=\"\",\"\",IF(MID(C6,3,1)=\"/\",IF(OR(RIGHT(C6,4)=\"FUNC\",RIGHT(C6,4)=\"_OPE\"),\"N/A\",MID(C6,11,2)),\"Faltan Separadores / \")))","v":""},null,{"$f":"IF(ISERR(FIND(\"(\",H6)),\"N/A\",LEFT(H6,FIND(\"(\",H6)-1))","v":"N/A"},{"$f":"IF(ISERR(FIND(\"indirecto\",LOWER(H6))),IF(ISERR(FIND(\"directo\",LOWER(H6))),\"N/A\",\"Directo\"),\"Indirecto\")","v":"N/A"},null,null,0,0,0,null,null,null,null,null,null,null,null,null,null,null,null,null,null,null,null,null,null,null,null,null,null,{"$f":"K6+M6+O6+Q6+S6+U6+W6+Y6+AA6+AC6+AE6+AG6","v":0},{"$f":"L6+N6+P6+R6+T6+V6+X6+Z6+AB6+AD6+AF6+AH6","v":0},0,0,0,null,null,null,null,null,null,null,null,null,null,null,null,null,null,null,null,null,null,null,null,null,null,{"$f":"AL6+AN6+AP6+AR6+AT6+AV6+AX6+AZ6+BB6+BD6+BF6+BH6","v":0},{"$f":"AM6+AO6+AQ6+AS6+AU6+AW6+AY6+BA6+BC6+BE6+BG6+BI6","v":0},0,0,0,null,null,null,null,null,null,null,null,null,null,null,null,null,null,null,null,null,null,null,null,null,null,{"$f":"BM6+BO6+BQ6+BS6+BU6+BW6+BY6+CA6+CC6+CE6+CG6+CI6","v":0},{"$f":"BN6+BP6+BR6+BT6+BV6+BX6+BZ6+CB6+CD6+CF6+CH6+CJ6","v":0}]
[null,null,null,"",null,{"$f":"IF(ISERR(FIND(\"(\",H7)),\"N/A\",LEFT(H7,FIND(\"(\",H7)-1))","v":"N/A"},{"$f":"IF(ISERR(FIND(\"indirecto\",LOWER(H7))),IF(ISERR(FIND(\"directo\",LOWER(H7))),\"N/A\",\"Directo\"),\"Indirecto\")","v":"N/A"},null,null,0,0,0,null,null,null,null,null,null,null,null,null,null,null,null,null,null,null,null,null,null,null,null,null,null,{"$f":"K7+M7+O7+Q7+S7+U7+W7+Y7+AA7+AC7+AE7+AG7","v":0},{"$f":"L7+N7+P7+R7+T7+V7+X7+Z7+AB7+AD7+AF7+AH7","v":0},0,0,0,null,null,null,null,null,null,null,null,null,null,null,null,null,null,null,null,null,null,null,null,null,null,0,0,0,0,0,null,null,null,null,null,null,null,null,null,null,null,null,null,null,null,null,null,null,null,null,null,null,0,0]
[null,null,null,"",null,"N/A","N/A",null,null,0,0,0,null,null,null,null,null,null,null,null,null,null,null,null,null,null,null,null,null,null,null,null,null,null,0,0,0,0,0,null,null,null,null,null,null,null,null,null,null,null,null,null,null,null,null,null,null,null,null,null,null,0,0,0,0,0,null,null,null,null,null,null,null,null,null,null,null,null,null,null,null,null,null,null,null,null,null,null,0,0]
[null,null,null,"",null,"N/A","N/A",null,null,0,0,0,null,null,null,null,null,null,null,null,null,null,null,null,null,null,null,null,null,null,null,null,null,null,0,0,0,0,0,null,null,null,null,null,null,null,null,null,null,null,null,null,null,null,null,null,null,null,null,null,null,0,0,0,0,0,null,null,null,null,null,null,null,null,null,null,null,null,null,null,null,null,null,null,null,null,null,null,0,0]
[null,null,null,"",null,"N/A","N/A",null,null,0,0,0,null,null,null,null,null,null,null,null,null,null,null,null,null,null,null,null,null,null,null,null,null,null,0,0,0,0,0,null,null,null,null,null,null,null,null,null,null,null,null,null,null,null,null,null,null,null,null,null,null,0,0,0,0,0,null,null,null,null,null,null,null,null,null,null,null,null,null,null,null,null,null,null,null,null,null,null,0,0]
[null,null,null,"",null,"N/A","N/A",null,null,0,0,0,null,null,null,null,null,null,null,null,null,null,null,null,null,null,null,null,null,null,null,null,null,null,0,0,0,0,0,null,null,null,null,null,null,null,null,null,null,null,null,null,null,null,null,null,null,null,null,null,null,0,0,0,0,0,null,null,null,null,null,null,null,null,null,null,null,null,null,null,null,null,null,null,null,null,null,null,0,0]
[null,null,null,"",null,"N/A","N/A",null,null,0,0,0,null,null,null,null,null,null,null,null,null,null,null,null,null,null,null,null,null,null,null,null,null,null,0,0,0,0,0,null,null,null,null,null,null,null,null,null,null,null,null,null,null,null,null,null,null,null,null,null,null,0,0,0,0,0,null,null,null,null,null,null,null,null,null,null,null,null,null,null,null,null,null,null,null,null,null,null,0,0]
[null,null,null,"",null,"N/A","N/A",null,null,0,0,0,null,null,null,null,null,null,null,null,null,null,null,null,null,null,null,null,null,null,null,null,null,null,0,0,0,0,0,null,null,null,null,null,null,null,null,null,null,null,null,null,null,null,null,null,null,null,null,null,null,0,0,0,0,0,null,null,null,null,null,null,null,null,null,null,null,null,null,null,null,null,null,null,null,null,null,null,0,0]
[null,null,null,"",null,"N/A","N/A",null,null,0,0,0,null,null,null,null,null,null,null,null,null,null,null,null,null,null,null,null,null,null,null,null,null,null,0,0,0,0,0,null,null,null,null,null,null,null,null,null,null,null,null,null,null,null,null,null,null,null,null,null,null,0,0,0,0,0,null,null,null,null,null,null,null,null,null,null,null,null,null,null,null,null,null,null,null,null,null,null,0,0]
[null,null,null,"",null,"N/A","N/A",null,null,0,0,0,null,null,null,null,null,null,null,null,null,null,null,null,null,null,null,null,null,null,null,null,null,null,0,0,0,0,0,null,null,null,null,null,null,null,null,null,null,null,null,null,null,null,null,null,null,null,null,null,null,0,0,0,0,0,null,null,null,null,null,null,null,null,null,null,null,null,null,null,null,null,null,null,null,null,null,null,0,0]
[null,null,null,"",null,"N/A","N/A",null,null,0,0,0,null,null,null,null,null,null,null,null,null,null,null,null,null,null,null,null,null,null,null,null,null,null,0,0,0,0,0,null,null,null,null,null,null,null,null,null,null,null,null,null,null,null,null,null,null,null,null,null,null,0,0,0,0,0,null,null,null,null,null,null,null,null,null,null,null,null,null,null,null,null,null,null,null,null,null,null,0,0]
[null,null,null,"",null,"N/A","N/A",null,null,0,0,0,null,null,null,null,null,null,null,null,null,null,null,null,null,null,null,null,null,null,null,null,null,null,0,0,0,0,0,null,null,null,null,null,null,null,null,null,null,null,null,null,null,null,null,null,null,null,null,null,null,0,0,0,0,0,null,null,null,null,null,null,null,null,null,null,null,null,null,null,null,null,null,null,null,null,null,null,0,0]
[null,null,null,"",null,"N/A","N/A",null,null,0,0,0,null,null,null,null,null,null,null,null,null,null,null,null,null,null,null,null,null,null,null,null,null,null,0,0,0,0,0,null,null,null,null,null,null,null,null,null,null,null,null,null,null,null,null,null,null,null,null,null,null,0,0,0,0,0,null,null,null,null,null,null,null,null,null,null,null,null,null,null,null,null,null,null,null,null,null,null,0,0]
[null,null,null,"",null,"N/A","N/A",null,null,0,0,0,null,null,null,null,null,null,null,null,null,null,null,null,null,null,null,null,null,null,null,null,null,null,0,0,0,0,0,null,null,null,null,null,null,null,null,null,null,null,null,null,null,null,null,null,null,null,null,null,null,0,0,0,0,0,null,null,null,null,null,null,null,null,null,null,null,null,null,null,null,null,null,null,null,null,null,null,0,0]
[null,null,null,"",null,"N/A","N/A",null,null,0,0,0,null,null,null,null,null,null,null,null,null,null,null,null,null,null,null,null,null,null,null,null,null,null,0,0,0,0,0,null,null,null,null,null,null,null,null,null,null,null,null,null,null,null,null,null,null,null,null,null,null,0,0,0,0,0,null,null,null,null,null,null,null,null,null,null,null,null,null,null,null,null,null,null,null,null,null,null,0,0]
[null,null,null,"",null,"N/A","N/A",null,null,0,0,0,null,null,null,null,null,null,null,null,null,null,null,null,null,null,null,null,null,null,null,null,null,null,0,0,0,0,0,null,null,null,null,null,null,null,null,null,null,null,null,null,null,null,null,null,null,null,null,null,null,0,0,0,0,0,null,null,null,null,null,null,null,null,null,null,null,null,null,null,null,null,null,null,null,null,null,null,0,0]
[null,null,null,"",null,"N/A","N/A",null,null,0,0,0,null,null,null,null,null,null,null,null,null,null,null,null,null,null,null,null,null,null,null,null,null,null,0,0,0,0,0,null,null,null,null,null,null,null,null,null,null,null,null,null,null,null,null,null,null,null,null,null,null,0,0,0,0,0,null,null,null,null,null,null,null,null,null,null,null,null,null,null,null,null,null,null,null,null,null,null,0,0]
[null,null,null,"",null,"N/A","N/A",null,null,0,0,0,null,null,null,null,null,null,null,null,null,null,null,null,null,null,null,null,null,null,null,null,null,null,0,0,0,0,0,null,null,null,null,null,null,null,null,null,null,null,null,null,null,null,null,null,null,null,null,null,null,0,0,0,0,0,null,null,null,null,null,null,null,null,null,null,null,null,null,null,null,null,null,null,null,null,null,null,0,0]
[null,null,null,"",null,"N/A","N/A",null,null,0,0,0,null,null,null,null,null,null,null,null,null,null,null,null,null,null,null,null,null,null,null,null,null,null,0,0,0,0,0,null,null,null,null,null,null,null,null,null,null,null,null,null,null,null,null,null,null,null,null,null,null,0,0,0,0,0,null,null,null,null,null,null,null,null,null,null,null,null,null,null,null,null,null,null,null,null,null,null,0,0]
[null,null,null,"",null,"N/A","N/A",null,null,0,0,0,null,null,null,null,null,null,null,null,null,null,null,null,null,null,null,null,null,null,null,null,null,null,0,0,0,0,0,null,null,null,null,null,null,null,null,null,null,null,null,null,null,null,null,null,null,null,null,null,null,0,0,0,0,0,null,null,null,null,null,null,null,null,null,null,null,null,null,null,null,null,null,null,null,null,null,null,0,0]
[null,null,null,"",null,"N/A","N/A",null,null,0,0,0,null,null,null,null,null,null,null,null,null,null,null,null,null,null,null,null,null,null,null,null,null,null,0,0,0,0,0,null,null,null,null,null,null,null,null,null,null,null,null,null,null,null,null,null,null,null,null,null,null,0,0,0,0,0,null,null,null,null,null,null,null,null,null,null,null,null,null,null,null,null,null,null,null,null,null,null,0,0]
[null,null,null,"",null,"N/A","N/A",null,null,0,0,0,null,null,null,null,null,null,null,null,null,null,null,null,null,null,null,null,null,null,null,null,null,null,0,0,0,0,0,null,null,null,null,null,null,null,null,null,null,null,null,null,null,null,null,null,null,null,null,null,null,0,0,0,0,0,null,null,null,null,null,null,null,null,null,null,null,null,null,null,null,null,null,null,null,null,null,null,0,0]
[null,null,null,"",null,"N/A","N/A",null,null,0,0,0,null,null,null,null,null,null,null,null,null,null,null,null,null,null,null,null,null,null,null,null,null,null,0,0,0,0,0,null,null,null,null,null,null,null,null,null,null,null,null,null,null,null,null,null,null,null,null,null,null,0,0,0,0,0,null,null,null,null,null,null,null,null,null,null,null,null,null,null,null,null,null,null,null,null,null,null,0,0]
[null,null,null,"",null,"N/A","N/A",null,null,0,0,0,null,null,null,null,null,null,null,null,null,null,null,null,null,null,null,null,null,null,null,null,null,null,0,0,0,0,0,null,null,null,null,null,null,null,null,null,null,null,null,null,null,null,null,null,null,null,null,null,null,0,0,0,0,0,null,null,null,null,null,null,null,null,null,null,null,null,null,null,null,null,null,null,null,null,null,null,0,0]
[null,null,null,"",null,"N/A","N/A",null,null,0,0,0,null,null,null,null,null,null,null,null,null,null,null,null,null,null,null,null,null,null,null,null,null,null,0,0,0,0,0,null,null,null,null,null,null,null,null,null,null,null,null,null,null,null,null,null,null,null,null,null,null,0,0,0,0,0,null,null,null,null,null,null,null,null,null,null,null,null,null,null,null,null,null,null,null,null,null,null,0,0]
[null,null,null,"",null,"N/A","N/A",null,null,0,0,0,null,null,null,null,null,null,null,null,null,null,null,null,null,null,null,null,null,null,null,null,null,null,0,0,0,0,0,null,null,null,null,null,null,null,null,null,null,null,null,null,null,null,null,null,null,null,null,null,null,0,0,0,0,0,null,null,null,null,null,null,null,null,null,null,null,null,null,null,null,null,null,null,null,null,null,null,0,0]
[null,null,null,"",null,"N/A","N/A",null,null,0,0,0,null,null,null,null,null,null,null,null,null,null,null,null,null,null,null,null,null,null,null,null,null,null,0,0,0,0,0,null,null,null,null,null,null,null,null,null,null,null,null,null,null,null,null,null,null,null,null,null,null,0,0,0,0,0,null,null,null,null,null,null,null,null,null,null,null,null,null,null,null,null,null,null,null,null,null,null,0,0]
[null,null,null,"",null,"N/A","N/A",null,null,0,0,0,null,null,null,null,null,null,null,null,null,null,null,null,null,null,null,null,null,null,null,null,null,null,0,0,0,0,0,null,null,null,null,null,null,null,null,null,null,null,null,null,null,null,null,null,null,null,null,null,null,0,0,0,0,0,null,null,null,null,null,null,null,null,null,null,null,null,null,null,null,null,null,null,null,null,null,null,0,0]
[null,null,null,"",null,"N/A","N/A",null,null,0,0,0,null,null,null,null,null,null,null,null,null,null,null,null,null,null,null,null,null,null,null,null,null,null,0,0,0,0,0,null,null,null,null,null,null,null,null,null,null,null,null,null,null,null,null,null,null,null,null,null,null,0,0,0,0,0,null,null,null,null,null,null,null,null,null,null,null,null,null,null,null,null,null,null,null,null,null,null,0,0]
[null,null,null,"",null,"N/A","N/A",null,null,0,0,0,null,null,null,null,null,null,null,null,null,null,null,null,null,null,null,null,null,null,null,null,null,null,0,0,0,0,0,null,null,null,null,null,null,null,null,null,null,null,null,null,null,null,null,null,null,null,null,null,null,0,0,0,0,0,null,null,null,null,null,null,null,null,null,null,null,null,null,null,null,null,null,null,null,null,null,null,0,0]
[null,null,null,"",null,"N/A","N/A",null,null,0,0,0,null,null,null,null,null,null,null,null,null,null,null,null,null,null,null,null,null,null,null,null,null,null,0,0,0,0,0,null,null,null,null,null,null,null,null,null,null,null,null,null,null,null,null,null,null,null,null,null,null,0,0,0,0,0,null,null,null,null,null,null,null,null,null,null,null,null,null,null,null,null,null,null,null,null,null,null,0,0]
[null,null,null,"",null,"N/A","N/A",null,null,0,0,0,null,null,null,null,null,null,null,null,null,null,null,null,null,null,null,null,null,null,null,null,null,null,0,0,0,0,0,null,null,null,null,null,null,null,null,null,null,null,null,null,null,null,null,null,null,null,null,null,null,0,0,0,0,0,null,null,null,null,null,null,null,null,null,null,null,null,null,null,null,null,null,null,null,null,null,null,0,0]
[null,null,null,"",null,"N/A","N/A",null,null,0,0,0,null,null,null,null,null,null,null,null,null,null,null,null,null,null,null,null,null,null,null,null,null,null,0,0,0,0,0,null,null,null,null,null,null,null,null,null,null,null,null,null,null,null,null,null,null,null,null,null,null,0,0,0,0,0,null,null,null,null,null,null,null,null,null,null,null,null,null,null,null,null,null,null,null,null,null,null,0,0]
[null,null,null,"",null,"N/A","N/A",null,null,0,0,0,null,null,null,null,null,null,null,null,null,null,null,null,null,null,null,null,null,null,null,null,null,null,0,0,0,0,0,null,null,null,null,null,null,null,null,null,null,null,null,null,null,null,null,null,null,null,null,null,null,0,0,0,0,0,null,null,null,null,null,null,null,null,null,null,null,null,null,null,null,null,null,null,null,null,null,null,0,0]
[null,null,null,"",null,"N/A","N/A",null,null,0,0,0,null,null,null,null,null,null,null,null,null,null,null,null,null,null,null,null,null,null,null,null,null,null,0,0,0,0,0,null,null,null,null,null,null,null,null,null,null,null,null,null,null,null,null,null,null,null,null,null,null,0,0,0,0,0,null,null,null,null,null,null,null,null,null,null,null,null,null,null,null,null,null,null,null,null,null,null,0,0]
[null,null,null,"",null,"N/A","N/A",null,null,0,0,0,null,null,null,null,null,null,null,null,null,null,null,null,null,null,null,null,null,null,null,null,null,null,0,0,0,0,0,null,null,null,null,null,null,null,null,null,null,null,null,null,null,null,null,null,null,null,null,null,null,0,0,0,0,0,null,null,null,null,null,null,null,null,null,null,null,null,null,null,null,null,null,null,null,null,null,null,0,0]
[null,null,null,"",null,"N/A","N/A",null,null,0,0,0,null,null,null,null,null,null,null,null,null,null,null,null,null,null,null,null,null,null,null,null,null,null,0,0,0,0,0,null,null,null,null,null,null,null,null,null,null,null,null,null,null,null,null,null,null,null,null,null,null,0,0,0,0,0,null,null,null,null,null,null,null,null,null,null,null,null,null,null,null,null,null,null,null,null,null,null,0,0]
[null,null,null,"",null,"N/A","N/A",null,null,0,0,0,null,null,null,null,null,null,null,null,null,null,null,null,null,null,null,null,null,null,null,null,null,null,0,0,0,0,0,null,null,null,null,null,null,null,null,null,null,null,null,null,null,null,null,null,null,null,null,null,null,0,0,0,0,0,null,null,null,null,null,null,null,null,null,null,null,null,null,null,null,null,null,null,null,null,null,null,0,0]
[null,null,null,"",null,"N/A","N/A",null,null,0,0,0,null,null,null,null,null,null,null,null,null,null,null,null,null,null,null,null,null,null,null,null,null,null,0,0,0,0,0,null,null,null,null,null,null,null,null,null,null,null,null,null,null,null,null,null,null,null,null,null,null,0,0,0,0,0,null,null,null,null,null,null,null,null,null,null,null,null,null,null,null,null,null,null,null,null,null,null,0,0]
[null,null,null,"",null,"N/A","N/A",null,null,0,0,0,null,null,null,null,null,null,null,null,null,null,null,null,null,null,null,null,null,null,null,null,null,null,0,0,0,0,0,null,null,null,null,null,null,null,null,null,null,null,null,null,null,null,null,null,null,null,null,null,null,0,0,0,0,0,null,null,null,null,null,null,null,null,null,null,null,null,null,null,null,null,null,null,null,null,null,null,0,0]
[null,null,null,"",null,"N/A","N/A",null,null,0,0,0,null,null,null,null,null,null,null,null,null,null,null,null,null,null,null,null,null,null,null,null,null,null,0,0,0,0,0,null,null,null,null,null,null,null,null,null,null,null,null,null,null,null,null,null,null,null,null,null,null,0,0,0,0,0,null,null,null,null,null,null,null,null,null,null,null,null,null,null,null,null,null,null,null,null,null,null,0,0]
[null,null,null,"",null,"N/A","N/A",null,null,0,0,0,null,null,null,null,null,null,null,null,null,null,null,null,null,null,null,null,null,null,null,null,null,null,0,0,0,0,0,null,null,null,null,null,null,null,null,null,null,null,null,null,null,null,null,null,null,null,null,null,null,0,0,0,0,0,null,null,null,null,null,null,null,null,null,null,null,null,null,null,null,null,null,null,null,null,null,null,0,0]
[null,null,null,"",null,"N/A","N/A",null,null,0,0,0,null,null,null,null,null,null,null,null,null,null,null,null,null,null,null,null,null,null,null,null,null,null,0,0,0,0,0,null,null,null,null,null,null,null,null,null,null,null,null,null,null,null,null,null,null,null,null,null,null,0,0,0,0,0,null,null,null,null,null,null,null,null,null,null,null,null,null,null,null,null,null,null,null,null,null,null,0,0]
[null,null,null,"",null,"N/A","N/A",null,null,0,0,0,null,null,null,null,null,null,null,null,null,null,null,null,null,null,null,null,null,null,null,null,null,null,0,0,0,0,0,null,null,null,null,null,null,null,null,null,null,null,null,null,null,null,null,null,null,null,null,null,null,0,0,0,0,0,null,null,null,null,null,null,null,null,null,null,null,null,null,null,null,null,null,null,null,null,null,null,0,0]
[null,null,null,"",null,"N/A","N/A",null,null,0,0,0,null,null,null,null,null,null,null,null,null,null,null,null,null,null,null,null,null,null,null,null,null,null,0,0,0,0,0,null,null,null,null,null,null,null,null,null,null,null,null,null,null,null,null,null,null,null,null,null,null,0,0,0,0,0,null,null,null,null,null,null,null,null,null,null,null,null,null,null,null,null,null,null,null,null,null,null,0,0]
[null,null,null,"",null,"N/A","N/A",null,null,0,0,0,null,null,null,null,null,null,null,null,null,null,null,null,null,null,null,null,null,null,null,null,null,null,0,0,0,0,0,null,null,null,null,null,null,null,null,null,null,null,null,null,null,null,null,null,null,null,null,null,null,0,0,0,0,0,null,null,null,null,null,null,null,null,null,null,null,null,null,null,null,null,null,null,null,null,null,null,0,0]
[null,null,null,"",null,"N/A","N/A",null,null,0,0,0,null,null,null,null,null,null,null,null,null,null,null,null,null,null,null,null,null,null,null,null,null,null,0,0,0,0,0,null,null,null,null,null,null,null,null,null,null,null,null,null,null,null,null,null,null,null,null,null,null,0,0,0,0,0,null,null,null,null,null,null,null,null,null,null,null,null,null,null,null,null,null,null,null,null,null,null,0,0]
[null,null,null,"",null,"N/A","N/A",null,null,0,0,0,null,null,null,null,null,null,null,null,null,null,null,null,null,null,null,null,null,null,null,null,null,null,0,0,0,0,0,null,null,null,null,null,null,null,null,null,null,null,null,null,null,null,null,null,null,null,null,null,null,0,0,0,0,0,null,null,null,null,null,null,null,null,null,null,null,null,null,null,null,null,null,null,null,null,null,null,0,0]
[null,null,null,"",null,"N/A","N/A",null,null,0,0,0,null,null,null,null,null,null,null,null,null,null,null,null,null,null,null,null,null,null,null,null,null,null,0,0,0,0,0,null,null,null,null,null,null,null,null,null,null,null,null,null,null,null,null,null,null,null,null,null,null,0,0,0,0,0,null,null,null,null,null,null,null,null,null,null,null,null,null,null,null,null,null,null,null,null,null,null,0,0]
[null,null,null,"",null,"N/A","N/A",null,null,0,0,0,null,null,null,null,null,null,null,null,null,null,null,null,null,null,null,null,null,null,null,null,null,null,0,0,0,0,0,null,null,null,null,null,null,null,null,null,null,null,null,null,null,null,null,null,null,null,null,null,null,0,0,0,0,0,null,null,null,null,null,null,null,null,null,null,null,null,null,null,null,null,null,null,null,null,null,null,0,0]
[null,null,null,"",null,"N/A","N/A",null,null,0,0,0,null,null,null,null,null,null,null,null,null,null,null,null,null,null,null,null,null,null,null,null,null,null,0,0,0,0,0,null,null,null,null,null,null,null,null,null,null,null,null,null,null,null,null,null,null,null,null,null,null,0,0,0,0,0,null,null,null,null,null,null,null,null,null,null,null,null,null,null,null,null,null,null,null,null,null,null,0,0]
[null,null,null,"",null,"N/A","N/A",null,null,0,0,0,null,null,null,null,null,null,null,null,null,null,null,null,null,null,null,null,null,null,null,null,null,null,0,0,0,0,0,null,null,null,null,null,null,null,null,null,null,null,null,null,null,null,null,null,null,null,null,null,null,0,0,0,0,0,null,null,null,null,null,null,null,null,null,null,null,null,null,null,null,null,null,null,null,null,null,null,0,0]
[null,null,null,"",null,"N/A","N/A",null,null,0,0,0,null,null,null,null,null,null,null,null,null,null,null,null,null,null,null,null,null,null,null,null,null,null,0,0,0,0,0,null,null,null,null,null,null,null,null,null,null,null,null,null,null,null,null,null,null,null,null,null,null,0,0,0,0,0,null,null,null,null,null,null,null,null,null,null,null,null,null,null,null,null,null,null,null,null,null,null,0,0]
[null,null,null,"",null,"N/A","N/A",null,null,0,0,0,null,null,null,null,null,null,null,null,null,null,null,null,null,null,null,null,null,null,null,null,null,null,0,0,0,0,0,null,null,null,null,null,null,null,null,null,null,null,null,null,null,null,null,null,null,null,null,null,null,0,0,0,0,0,null,null,null,null,null,null,null,null,null,null,null,null,null,null,null,null,null,null,null,null,null,null,0,0]
[null,null,null,"",null,"N/A","N/A",null,null,0,0,0,null,null,null,null,null,null,null,null,null,null,null,null,null,null,null,null,null,null,null,null,null,null,0,0,0,0,0,null,null,null,null,null,null,null,null,null,null,null,null,null,null,null,null,null,null,null,null,null,null,0,0,0,0,0,null,null,null,null,null,null,null,null,null,null,null,null,null,null,null,null,null,null,null,null,null,null,0,0]
[null,null,null,"",null,"N/A","N/A",null,null,0,0,0,null,null,null,null,null,null,null,null,null,null,null,null,null,null,null,null,null,null,null,null,null,null,0,0,0,0,0,null,null,null,null,null,null,null,null,null,null,null,null,null,null,null,null,null,null,null,null,null,null,0,0,0,0,0,null,null,null,null,null,null,null,null,null,null,null,null,null,null,null,null,null,null,null,null,null,null,0,0]
[null,null,null,"",null,"N/A","N/A",null,null,0,0,0,null,null,null,null,null,null,null,null,null,null,null,null,null,null,null,null,null,null,null,null,null,null,0,0,0,0,0,null,null,null,null,null,null,null,null,null,null,null,null,null,null,null,null,null,null,null,null,null,null,0,0,0,0,0,null,null,null,null,null,null,null,null,null,null,null,null,null,null,null,null,null,null,null,null,null,null,0,0]
[null,null,null,"",null,"N/A","N/A",null,null,0,0,0,null,null,null,null,null,null,null,null,null,null,null,null,null,null,null,null,null,null,null,null,null,null,0,0,0,0,0,null,null,null,null,null,null,null,null,null,null,null,null,null,null,null,null,null,null,null,null,null,null,0,0,0,0,0,null,null,null,null,null,null,null,null,null,null,null,null,null,null,null,null,null,null,null,null,null,null,0,0]
[null,null,null,"",null,"N/A","N/A",null,null,0,0,0,null,null,null,null,null,null,null,null,null,null,null,null,null,null,null,null,null,null,null,null,null,null,0,0,0,0,0,null,null,null,null,null,null,null,null,null,null,null,null,null,null,null,null,null,null,null,null,null,null,0,0,0,0,0,null,null,null,null,null,null,null,null,null,null,null,null,null,null,null,null,null,null,null,null,null,null,0,0]
[null,null,null,"",null,"N/A","N/A",null,null,0,0,0,null,null,null,null,null,null,null,null,null,null,null,null,null,null,null,null,null,null,null,null,null,null,0,0,0,0,0,null,null,null,null,null,null,null,null,null,null,null,null,null,null,null,null,null,null,null,null,null,null,0,0,0,0,0,null,null,null,null,null,null,null,null,null,null,null,null,null,null,null,null,null,null,null,null,null,null,0,0]
[null,null,null,"",null,"N/A","N/A",null,null,0,0,0,null,null,null,null,null,null,null,null,null,null,null,null,null,null,null,null,null,null,null,null,null,null,0,0,0,0,0,null,null,null,null,null,null,null,null,null,null,null,null,null,null,null,null,null,null,null,null,null,null,0,0,0,0,0,null,null,null,null,null,null,null,null,null,null,null,null,null,null,null,null,null,null,null,null,null,null,0,0]
[null,null,null,"",null,"N/A","N/A",null,null,0,0,0,null,null,null,null,null,null,null,null,null,null,null,null,null,null,null,null,null,null,null,null,null,null,0,0,0,0,0,null,null,null,null,null,null,null,null,null,null,null,null,null,null,null,null,null,null,null,null,null,null,0,0,0,0,0,null,null,null,null,null,null,null,null,null,null,null,null,null,null,null,null,null,null,null,null,null,null,0,0]
[null,null,null,"",null,"N/A","N/A",null,null,0,0,0,null,null,null,null,null,null,null,null,null,null,null,null,null,null,null,null,null,null,null,null,null,null,0,0,0,0,0,null,null,null,null,null,null,null,null,null,null,null,null,null,null,null,null,null,null,null,null,null,null,0,0,0,0,0,null,null,null,null,null,null,null,null,null,null,null,null,null,null,null,null,null,null,null,null,null,null,0,0]
[null,null,null,"",null,"N/A","N/A",null,null,0,0,0,null,null,null,null,null,null,null,null,null,null,null,null,null,null,null,null,null,null,null,null,null,null,0,0,0,0,0,null,null,null,null,null,null,null,null,null,null,null,null,null,null,null,null,null,null,null,null,null,null,0,0,0,0,0,null,null,null,null,null,null,null,null,null,null,null,null,null,null,null,null,null,null,null,null,null,null,0,0]
[null,null,null,{"$f":"IF(RIGHT(C70,4)=\"Func\",\"N/A\",IF(C70=\"\",\"\",IF(MID(C70,3,1)=\"/\",IF(OR(RIGHT(C70,4)=\"FUNC\",RIGHT(C70,4)=\"_OPE\"),\"N/A\",MID(C70,11,2)),\"Faltan Separadores / \")))","v":""},null,"N/A","N/A",null,null,0,0,0,null,null,null,null,null,null,null,null,null,null,null,null,null,null,null,null,null,null,null,null,null,null,0,0,0,0,0,null,null,null,null,null,null,null,null,null,null,null,null,null,null,null,null,null,null,null,null,null,null,0,0,0,0,0,null,null,null,null,null,null,null,null,null,null,null,null,null,null,null,null,null,null,null,null,null,null,0,0]
[null,null,null,"",null,{"$f":"IF(ISERR(FIND(\"(\",H71)),\"N/A\",LEFT(H71,FIND(\"(\",H71)-1))","v":"N/A"},{"$f":"IF(ISERR(FIND(\"indirecto\",LOWER(H71))),IF(ISERR(FIND(\"directo\",LOWER(H71))),\"N/A\",\"Directo\"),\"Indirecto\")","v":"N/A"},null,null,0,0,0,null,null,null,null,null,null,null,null,null,null,null,null,null,null,null,null,null,null,null,null,null,null,{"$f":"K71+M71+O71+Q71+S71+U71+W71+Y71+AA71+AC71+AE71+AG71","v":0},{"$f":"L71+N71+P71+R71+T71+V71+X71+Z71+AB71+AD71+AF71+AH71","v":0},0,0,0,null,null,null,null,null,null,null,null,null,null,null,null,null,null,null,null,null,null,null,null,null,null,0,0,0,0,0,null,null,null,null,null,null,null,null,null,null,null,null,null,null,null,null,null,null,null,null,null,null,0,0]
[null,null,null,"",null,"N/A","N/A",null,null,0,0,0,null,null,null,null,null,null,null,null,null,null,null,null,null,null,null,null,null,null,null,null,null,null,0,0,0,0,0,null,null,null,null,null,null,null,null,null,null,null,null,null,null,null,null,null,null,null,null,null,null,0,0,0,0,0,null,null,null,null,null,null,null,null,null,null,null,null,null,null,null,null,null,null,null,null,null,null,0,0]
[null,null,null,"",null,"N/A","N/A",null,null,0,0,0,null,null,null,null,null,null,null,null,null,null,null,null,null,null,null,null,null,null,null,null,null,null,0,0,0,0,0,null,null,null,null,null,null,null,null,null,null,null,null,null,null,null,null,null,null,null,null,null,null,0,0,0,0,0,null,null,null,null,null,null,null,null,null,null,null,null,null,null,null,null,null,null,null,null,null,null,0,0]
[null,null,null,"",null,"N/A","N/A",null,null,0,0,0,null,null,null,null,null,null,null,null,null,null,null,null,null,null,null,null,null,null,null,null,null,null,0,0,0,0,0,null,null,null,null,null,null,null,null,null,null,null,null,null,null,null,null,null,null,null,null,null,null,0,0,0,0,0,null,null,null,null,null,null,null,null,null,null,null,null,null,null,null,null,null,null,null,null,null,null,0,0]
[null,null,null,"",null,"N/A","N/A",null,null,0,0,0,null,null,null,null,null,null,null,null,null,null,null,null,null,null,null,null,null,null,null,null,null,null,0,0,0,0,0,null,null,null,null,null,null,null,null,null,null,null,null,null,null,null,null,null,null,null,null,null,null,0,0,0,0,0,null,null,null,null,null,null,null,null,null,null,null,null,null,null,null,null,null,null,null,null,null,null,0,0]
[null,null,null,"",null,"N/A","N/A",null,null,0,0,0,null,null,null,null,null,null,null,null,null,null,null,null,null,null,null,null,null,null,null,null,null,null,0,0,0,0,0,null,null,null,null,null,null,null,null,null,null,null,null,null,null,null,null,null,null,null,null,null,null,0,0,0,0,0,null,null,null,null,null,null,null,null,null,null,null,null,null,null,null,null,null,null,null,null,null,null,0,0]
[null,null,null,"",null,"N/A","N/A",null,null,0,0,0,null,null,null,null,null,null,null,null,null,null,null,null,null,null,null,null,null,null,null,null,null,null,0,0,0,0,0,null,null,null,null,null,null,null,null,null,null,null,null,null,null,null,null,null,null,null,null,null,null,0,0,0,0,0,null,null,null,null,null,null,null,null,null,null,null,null,null,null,null,null,null,null,null,null,null,null,0,0]
[null,null,null,"",null,"N/A","N/A",null,null,0,0,0,null,null,null,null,null,null,null,null,null,null,null,null,null,null,null,null,null,null,null,null,null,null,0,0,0,0,0,null,null,null,null,null,null,null,null,null,null,null,null,null,null,null,null,null,null,null,null,null,null,0,0,0,0,0,null,null,null,null,null,null,null,null,null,null,null,null,null,null,null,null,null,null,null,null,null,null,0,0]
[null,null,null,"",null,"N/A","N/A",null,null,0,0,0,null,null,null,null,null,null,null,null,null,null,null,null,null,null,null,null,null,null,null,null,null,null,0,0,0,0,0,null,null,null,null,null,null,null,null,null,null,null,null,null,null,null,null,null,null,null,null,null,null,0,0,0,0,0,null,null,null,null,null,null,null,null,null,null,null,null,null,null,null,null,null,null,null,null,null,null,0,0]
[null,null,null,"",null,"N/A","N/A",null,null,0,0,0,null,null,null,null,null,null,null,null,null,null,null,null,null,null,null,null,null,null,null,null,null,null,0,0,0,0,0,null,null,null,null,null,null,null,null,null,null,null,null,null,null,null,null,null,null,null,null,null,null,0,0,0,0,0,null,null,null,null,null,null,null,null,null,null,null,null,null,null,null,null,null,null,null,null,null,null,0,0]
[null,null,null,"",null,"N/A","N/A",null,null,0,0,0,null,null,null,null,null,null,null,null,null,null,null,null,null,null,null,null,null,null,null,null,null,null,0,0,0,0,0,null,null,null,null,null,null,null,null,null,null,null,null,null,null,null,null,null,null,null,null,null,null,0,0,0,0,0,null,null,null,null,null,null,null,null,null,null,null,null,null,null,null,null,null,null,null,null,null,null,0,0]
[null,null,null,"",null,"N/A","N/A",null,null,0,0,0,null,null,null,null,null,null,null,null,null,null,null,null,null,null,null,null,null,null,null,null,null,null,0,0,0,0,0,null,null,null,null,null,null,null,null,null,null,null,null,null,null,null,null,null,null,null,null,null,null,0,0,0,0,0,null,null,null,null,null,null,null,null,null,null,null,null,null,null,null,null,null,null,null,null,null,null,0,0]
[null,null,null,"",null,"N/A","N/A",null,null,0,0,0,null,null,null,null,null,null,null,null,null,null,null,null,null,null,null,null,null,null,null,null,null,null,0,0,0,0,0,null,null,null,null,null,null,null,null,null,null,null,null,null,null,null,null,null,null,null,null,null,null,0,0,0,0,0,null,null,null,null,null,null,null,null,null,null,null,null,null,null,null,null,null,null,null,null,null,null,0,0]
[null,null,null,"",null,"N/A","N/A",null,null,0,0,0,null,null,null,null,null,null,null,null,null,null,null,null,null,null,null,null,null,null,null,null,null,null,0,0,0,0,0,null,null,null,null,null,null,null,null,null,null,null,null,null,null,null,null,null,null,null,null,null,null,0,0,0,0,0,null,null,null,null,null,null,null,null,null,null,null,null,null,null,null,null,null,null,null,null,null,null,0,0]
[null,null,null,"",null,"N/A","N/A",null,null,0,0,0,null,null,null,null,null,null,null,null,null,null,null,null,null,null,null,null,null,null,null,null,null,null,0,0,0,0,0,null,null,null,null,null,null,null,null,null,null,null,null,null,null,null,null,null,null,null,null,null,null,0,0,0,0,0,null,null,null,null,null,null,null,null,null,null,null,null,null,null,null,null,null,null,null,null,null,null,0,0]
[null,null,null,"",null,"N/A","N/A",null,null,0,0,0,null,null,null,null,null,null,null,null,null,null,null,null,null,null,null,null,null,null,null,null,null,null,0,0,0,0,0,null,null,null,null,null,null,null,null,null,null,null,null,null,null,null,null,null,null,null,null,null,null,0,0,0,0,0,null,null,null,null,null,null,null,null,null,null,null,null,null,null,null,null,null,null,null,null,null,null,0,0]
[null,null,null,"",null,"N/A","N/A",null,null,0,0,0,null,null,null,null,null,null,null,null,null,null,null,null,null,null,null,null,null,null,null,null,null,null,0,0,0,0,0,null,null,null,null,null,null,null,null,null,null,null,null,null,null,null,null,null,null,null,null,null,null,0,0,0,0,0,null,null,null,null,null,null,null,null,null,null,null,null,null,null,null,null,null,null,null,null,null,null,0,0]
[null,null,null,"",null,"N/A","N/A",null,null,0,0,0,null,null,null,null,null,null,null,null,null,null,null,null,null,null,null,null,null,null,null,null,null,null,0,0,0,0,0,null,null,null,null,null,null,null,null,null,null,null,null,null,null,null,null,null,null,null,null,null,null,0,0,0,0,0,null,null,null,null,null,null,null,null,null,null,null,null,null,null,null,null,null,null,null,null,null,null,0,0]
[null,null,null,"",null,"N/A","N/A",null,null,0,0,0,null,null,null,null,null,null,null,null,null,null,null,null,null,null,null,null,null,null,null,null,null,null,0,0,0,0,0,null,null,null,null,null,null,null,null,null,null,null,null,null,null,null,null,null,null,null,null,null,null,0,0,0,0,0,null,null,null,null,null,null,null,null,null,null,null,null,null,null,null,null,null,null,null,null,null,null,0,0]
[null,null,null,"",null,"N/A","N/A",null,null,0,0,0,null,null,null,null,null,null,null,null,null,null,null,null,null,null,null,null,null,null,null,null,null,null,0,0,0,0,0,null,null,null,null,null,null,null,null,null,null,null,null,null,null,null,null,null,null,null,null,null,null,0,0,0,0,0,null,null,null,null,null,null,null,null,null,null,null,null,null,null,null,null,null,null,null,null,null,null,0,0]
[null,null,null,"",null,"N/A","N/A",null,null,0,0,0,null,null,null,null,null,null,null,null,null,null,null,null,null,null,null,null,null,null,null,null,null,null,0,0,0,0,0,null,null,null,null,null,null,null,null,null,null,null,null,null,null,null,null,null,null,null,null,null,null,0,0,0,0,0,null,null,null,null,null,null,null,null,null,null,null,null,null,null,null,null,null,null,null,null,null,null,0,0]
[null,null,null,"",null,"N/A","N/A",null,null,0,0,0,null,null,null,null,null,null,null,null,null,null,null,null,null,null,null,null,null,null,null,null,null,null,0,0,0,0,0,null,null,null,null,null,null,null,null,null,null,null,null,null,null,null,null,null,null,null,null,null,null,0,0,0,0,0,null,null,null,null,null,null,null,null,null,null,null,null,null,null,null,null,null,null,null,null,null,null,0,0]
[null,null,null,"",null,"N/A","N/A",null,null,0,0,0,null,null,null,null,null,null,null,null,null,null,null,null,null,null,null,null,null,null,null,null,null,null,0,0,0,0,0,null,null,null,null,null,null,null,null,null,null,null,null,null,null,null,null,null,null,null,null,null,null,0,0,0,0,0,null,null,null,null,null,null,null,null,null,null,null,null,null,null,null,null,null,null,null,null,null,null,0,0]
[null,null,null,"",null,"N/A","N/A",null,null,0,0,0,null,null,null,null,null,null,null,null,null,null,null,null,null,null,null,null,null,null,null,null,null,null,0,0,0,0,0,null,null,null,null,null,null,null,null,null,null,null,null,null,null,null,null,null,null,null,null,null,null,0,0,0,0,0,null,null,null,null,null,null,null,null,null,null,null,null,null,null,null,null,null,null,null,null,null,null,0,0]
[null,null,null,"",null,"N/A","N/A",null,null,0,0,0,null,null,null,null,null,null,null,null,null,null,null,null,null,null,null,null,null,null,null,null,null,null,0,0,0,0,0,null,null,null,null,null,null,null,null,null,null,null,null,null,null,null,null,null,null,null,null,null,null,0,0,0,0,0,null,null,null,null,null,null,null,null,null,null,null,null,null,null,null,null,null,null,null,null,null,null,0,0]
[null,null,null,"",null,"N/A","N/A",null,null,0,0,0,null,null,null,null,null,null,null,null,null,null,null,null,null,null,null,null,null,null,null,null,null,null,0,0,0,0,0,null,null,null,null,null,null,null,null,null,null,null,null,null,null,null,null,null,null,null,null,null,null,0,0,0,0,0,null,null,null,null,null,null,null,null,null,null,null,null,null,null,null,null,null,null,null,null,null,null,0,0]
[null,null,null,"",null,"N/A","N/A",null,null,0,0,0,null,null,null,null,null,null,null,null,null,null,null,null,null,null,null,null,null,null,null,null,null,null,0,0,0,0,0,null,null,null,null,null,null,null,null,null,null,null,null,null,null,null,null,null,null,null,null,null,null,0,0,0,0,0,null,null,null,null,null,null,null,null,null,null,null,null,null,null,null,null,null,null,null,null,null,null,0,0]
[null,null,null,"",null,"N/A","N/A",null,null,0,0,0,null,null,null,null,null,null,null,null,null,null,null,null,null,null,null,null,null,null,null,null,null,null,0,0,0,0,0,null,null,null,null,null,null,null,null,null,null,null,null,null,null,null,null,null,null,null,null,null,null,0,0,0,0,0,null,null,null,null,null,null,null,null,null,null,null,null,null,null,null,null,null,null,null,null,null,null,0,0]
[null,null,null,"",null,"N/A","N/A",null,null,0,0,0,null,null,null,null,null,null,null,null,null,null,null,null,null,null,null,null,null,null,null,null,null,null,0,0,0,0,0,null,null,null,null,null,null,null,null,null,null,null,null,null,null,null,null,null,null,null,null,null,null,0,0,0,0,0,null,null,null,null,null,null,null,null,null,null,null,null,null,null,null,null,null,null,null,null,null,null,0,0]
[null,null,null,"",null,"N/A","N/A",null,null,0,0,0,null,null,null,null,null,null,null,null,null,null,null,null,null,null,null,null,null,null,null,null,null,null,0,0,0,0,0,null,null,null,null,null,null,null,null,null,null,null,null,null,null,null,null,null,null,null,null,null,null,0,0,0,0,0,null,null,null,null,null,null,null,null,null,null,null,null,null,null,null,null,null,null,null,null,null,null,0,0]
[null,null,null,"",null,"N/A","N/A",null,null,0,0,0,null,null,null,null,null,null,null,null,null,null,null,null,null,null,null,null,null,null,null,null,null,null,0,0,0,0,0,null,null,null,null,null,null,null,null,null,null,null,null,null,null,null,null,null,null,null,null,null,null,0,0,0,0,0,null,null,null,null,null,null,null,null,null,null,null,null,null,null,null,null,null,null,null,null,null,null,0,0]
[null,null,null,"",null,"N/A","N/A",null,null,0,0,0,null,null,null,null,null,null,null,null,null,null,null,null,null,null,null,null,null,null,null,null,null,null,0,0,0,0,0,null,null,null,null,null,null,null,null,null,null,null,null,null,null,null,null,null,null,null,null,null,null,0,0,0,0,0,null,null,null,null,null,null,null,null,null,null,null,null,null,null,null,null,null,null,null,null,null,null,0,0]
[null,null,null,"",null,"N/A","N/A",null,null,0,0,0,null,null,null,null,null,null,null,null,null,null,null,null,null,null,null,null,null,null,null,null,null,null,0,0,0,0,0,null,null,null,null,null,null,null,null,null,null,null,null,null,null,null,null,null,null,null,null,null,null,0,0,0,0,0,null,null,null,null,null,null,null,null,null,null,null,null,null,null,null,null,null,null,null,null,null,null,0,0]
[null,null,null,"",null,"N/A","N/A",null,null,0,0,0,null,null,null,null,null,null,null,null,null,null,null,null,null,null,null,null,null,null,null,null,null,null,0,0,0,0,0,null,null,null,null,null,null,null,null,null,null,null,null,null,null,null,null,null,null,null,null,null,null,0,0,0,0,0,null,null,null,null,null,null,null,null,null,null,null,null,null,null,null,null,null,null,null,null,null,null,0,0]
[null,null,null,"",null,"N/A","N/A",null,null,0,0,0,null,null,null,null,null,null,null,null,null,null,null,null,null,null,null,null,null,null,null,null,null,null,0,0,0,0,0,null,null,null,null,null,null,null,null,null,null,null,null,null,null,null,null,null,null,null,null,null,null,0,0,0,0,0,null,null,null,null,null,null,null,null,null,null,null,null,null,null,null,null,null,null,null,null,null,null,0,0]
[" "," "," "," ",null," ",null," "," "," "," "," ",null,null,null,null,null,null,null,null,null,null,null,null,null,null,null,null,null,null,null,null,null,null,null,null," "," "," ",null,null,null,null,null,null,null,null,null,null,null,null,null,null,null,null,null,null,null,null,null,null," "," "," "," "," ",null,null,null,null,null,null,null,null,null,null,null,null,null,null,null,null,null,null,null,null,null,null," "," "]

{"sheet":"Hoja1","index":1,"n_rows":68,"n_cols":8,"rows_kept":68,"cut":false,"hidden":true,"merged":[]}
["TPIEG(GDA)-C01.01.Directo.Empleabilidad y acceso al trabajo"," ","01 - FDL Usaquén",null,"TPIEG","Trazador presupeustal de Igualdad y equidad de género"," ","Enero"]
["TPIEG(GDB)-C01.02.Directo.Emprendimiento económico  "," ","02 - FDL Chapinero",null,"TPJ","Trazador presupuestal de Juventud"," ","Febrero"]
["TPIEG(GDC)-C01.03.Directo.Transferencias y provisión de servicios públicos"," ","03 - FDL Santa fe",null,"TPPD","Trazador presupuestal para población con discapacidad"," ","Marzo"]
["TPIEG(GDD)-C01.90.Directo.Transformación de imaginarios para la igualdad"," ","04 - FDL San Cristóbal",null,"TPTCC","Trazador presupuestal de Territorialización y cultura ciudadana"," ","Abril"]
["TPIEG(GIA)-C01.01.Indirecto.Empleabilidad y acceso al trabajo"," ","05 - FDL Usme",null,"TPGE","Trazador presupuestal de Grupos étnicos"," ","Mayo"]
["TPIEG(GIB)-C01.02.Indirecto.Emprendimiento económico  "," ","06 - FDL Tunjuelito",null,"TPCP","Trazador presupuestal de Construcción de Paz"," ","Junio"]
["TPIEG(GIC)-C01.03.Indirecto.Transferencias y provisión de servicios públicos"," ","07 - FDL Bosa",null,null,null,null,"Julio"]
["TPIEG(GID)-C01.90.Indirecto.Transformación de imaginarios para la igualdad"," ","08 - FDL Kennedy",null,null,null,null,"Agosto"]
["TPIEG(GDG)-C02.02.Directo.Representación política"," ","09 - FDL Fontibón",null,null,null,null,"Septiembre"]
["TPIEG(GD1)-C02.03.Directo.Ciudadanía activa promovida a través de la construcción de capacidades culturales"," ","10 - FDL Engativá",null,null,null,null,"Octubre"]
["TPIEG(GDH)-C02.90.Directo.Transformación de imaginarios para la igualdad"," ","11 - FDL Suba",null,null,null,null,"Noviembre"]
["TPIEG(GIG)-C02.02.Indirecto.Representación política"," ","12 - FDL Barrios Unidos",null,null,null,null,"Diciembre"]
["TPIEG(GI1)-C02.03.Indirecto.Ciudadanía activa promovida a través de la construcción de capacidades culturales"," ","13 - FDL Ciudad Bolivar"]
["TPIEG(GIH)-C02.90.Indirecto.Transformación de imaginarios para la igualdad"," ","14 - FDL Mártires"]
["TPIEG(GDJ)-C03.01.Directo.Prevención y atención en Salud"," ","15 - FDL Antonio Nariño"]
["TPIEG(GDK)-C03.02.Directo.Derechos sexuales y reproductivos"," ","16 - FDL Puente Aranda"]
["TPIEG(GDL)-C03.90.Directo.Transformación de imaginarios para la igualdad"," ","17 - FDL Candelaria"]
["TPIEG(GIJ)-C03.01.Indirecto.Prevención y atención en Salud"," ","18 - FDL Rafael Uribe"]
["TPIEG(GIK)-C03.02.Indirecto.Derechos sexuales y reproductivos"," ","19 - FDL Ciudad Bolivar"]
["TPIEG(GIL)-C03.90.Indirecto.Transformación de imaginarios para la igualdad"," ","20 - FDL Sumapaz"]
["TPIEG(GDN)-C04.01.Directo.Educación y profesionalización con equidad"," ","0102 - Personería Distrital"]
["TPIEG(GDO)-C04.02.Directo.Acceso, uso y apropiación de las TIC"," ","0104 - Secretaría General"]
["TPIEG(GDP)-C04.90.Directo.Transformación de imaginarios para la igualdad"," ","0105 - Veeduría Distrital"]
["TPIEG(GIN)-C04.01.Indirecto.Educación y profesionalización con equidad"," ","0110 - Secretaría Distrital de Gobierno"]
["TPIEG(GIO)-C04.02.Indirecto.Acceso, uso y apropiación de las TIC"," ","0111 - Secretaría Distrital de Hacienda"]
["TPIEG(GIP)-C04.90.Indirecto.Transformación de imaginarios para la igualdad"," ","0112 - Secretaría de Educación del Distrito"]
["TPIEG(GDR)-C05.01.Directo.Protección y atención a mujeres víctimas"," ","0113 - Secretaría Distrital de Movilidad"]
["TPIEG(GDS)-C05.02.Directo.Acceso a la justicia"," ","0117 - Secretaría Distrital de Desarrollo Económico"]
["TPIEG(GDT)-C05.03.Directo.Construcción de paz",null,"0118 - Secretaría Distrital del Hábitat"]
["TPIEG(GDU)-C05.90.Directo.Transformación de imaginarios para la igualdad",null,"0119 - Secretaría Distrital de Cultura, Recreación y Deporte"]
["TPIEG(GIR)-C05.01.Indirecto.Protección y atención a mujeres víctimas",null,"0120 - Secretaría Distrital de Planeación"]
["TPIEG(GIS)-C05.02.Indirecto.Acceso a la justicia",null,"0121 - Secretaría Distrital de la Mujer"]
["TPIEG(GIT)-C05.03.Indirecto.Construcción de paz",null,"0122 - Secretaría Distrital de Integración Social"]
["TPIEG(GIU)-C05.90.Indirecto.Transformación de imaginarios para la igualdad",null,"0125 - Departamento Administrativo del Servicio Civil Distrital"]
["TPIEG(GDW)-C90.01.Directo.Reducción del tiempo de trabajo de cuidado no remunerado",null,"0126 - Secretaría Distrital de Ambiente"]
["TPIEG(GDX)-C90.02.Directo.Reconocimiento del trabajo de cuidado",null,"0127 - Departamento Administrativo de la Defensoría del Espacio Público"]
["TPIEG(GDY)-C90.90.Directo.Transformación de imaginarios para la igualdad",null,"0131 - Unidad Administrativa Especial Cuerpo Oficial de Bomberos"]
["TPIEG(GIW)-C90.01.Indirecto.Reducción del tiempo de trabajo de cuidado no remunerado",null,"0136 - Secretaría Jurídica Distrital"]
["TPIEG(GIX)-C90.02.Indirecto.Reconocimiento del trabajo de cuidado",null,"0137 - Secretaría Distrital de Seguridad, Convivencia y Justicia"]
["TPIEG(GIY)-C90.90.Indirecto.Transformación de imaginarios para la igualdad",null,"0200 - Instituto para la Economía Social"]
["TPIEG(GD2)-C91.01.Directo.Adecuación institucional con enfoque de género para la garantía de derechos",null,"0201 - Secretaría Distrital de Salud / Fondo Financiero Distrital de Salud"]
["TPIEG(GD3)-C91.02.Directo.Adecuación de infraestructura física y tecnológica con enfoque de género",null,"0203 - Instituto Distrital de Gestión de Riesgos y Cambio Climático"]
["TPIEG(GD4)-C91.90.Directo.Transformación de imaginarios para la igualdad",null,"0204 - Instituto de Desarrollo Urbano"]
["TPIEG(GI2)-C91.01.Indirecto.Adecuación institucional con enfoque de género para la garantía de derechos",null,"0206 - Fondo de Prestaciones Económicas, Cesantías y Pensiones"]
["TPIEG(GI3)-C91.02.Indirecto.Adecuación de infraestructura física y tecnológica con enfoque de género",null,"0208 - Caja de Vivienda Popular"]
["TPIEG(GI4)-C91.90.Indirecto.Transformación de imaginarios para la igualdad",null,"0211 - Instituto Distrital de Recreación y Deporte"]
[null,null,"0213 - Instituto Distrital del Patrimonio Cultural"]
[null,null,"0214 - Instituto Distrital para la Protección de la Niñez y la Juventud"]
[null,null,"0215 - Fundación Gilberto Alzate Avendaño"]
[null,null,"0216 - Orquesta Filarmónica de Bogotá"]
[null,null,"0218 - Jardín Botánico José Celestino Mutis"]
[null,null,"0219 - Instituto para la Investigación Educativa y el Desarrollo Pedagógico"]
[null,null,"0220 - Instituto Distrital de la Participación y Acción Comunal"]
[null,null,"0221 - Instituto Distrital de Turismo"]
[null,null,"0222 - Instituto Distrital de las Artes"]
[null,null,"0226 - Unidad Administrativa Especial de Catastro Distrital"]
[null,null,"0227 - Unidad Administrativa Especial de Rehabilitación y Mantenimiento Vial"]
[null,null,"0228 - Unidad Administrativa Especial de Servicios Públicos"]
[null,null,"0229 - Instituto Distrital de Protección y Bienestar Animal"]
[null,null,"0230 - Universidad Distrital Francisco José de Caldas"]
[null,null,"0235 - Contraloría Distrital"]
[null,null,"0240 - Lotería de Bogotá"]
[null,null,"0260 - Canal Capital"]
[null,null,"0262 - Empresa de Transporte del Tercer Milenio - Transmilenio S.A."]
[null,null,"0263 - Empresa de Renovación y Desarrollo Urbano"]
[null,null,"0265 - Empresa de Acueducto y Alcantarillado de Bogotá"]
[null,null,"0266 - Empresa Metro de Bogotá S.A."]
[null,null,"0501 - Agencia Distrital para la Educación Superior, la Ciencia y la Tecnología"]

{"sheet":"Instructivo para diligenciamien","index":2,"n_rows":44,"n_cols":2,"rows_kept":44,"cut":false,"hidden":false,"merged":[[0,0,0,1],[9,0,9,1]]}
["Recomendaciones para el registro de información en la herramienta PMR (Productos, Metas y Resultados)"]
["A","Consideraciones Generales"]
[1,"La unidad de análisis en PMR es el Producto."]
[2,"La marcación es anual. Los valores programados son estimados y son el punto de partida de la sigueinte vigiencia, por tanto no son suceptibles de modificación."]
[{"$f":"A4+1","v":3},"La información marcada en SEGPLAN y PMR, debe ser coherente, en este sentido:\ni) El proyecto de invresión marcado en SEGPLAN debe marcarse en PMR\nii)El impacto (directo o indirecto) y las subcategorias, debe ser las mismas en ambos sistemas \niii) Si el impacto es Directo: Los recursos a nivel de compromisos y obligaciones deben ser iguales en ambos sistemas\niv) Si el impacto es Indirecto: Los recursos a nivel de compromisos y obligaciones en PMR deben ser iguales o inferiores a los de SEGPLAN"]
[{"$f":"A5+1","v":4},"Se debe marcar únicamente una categoría y debe estar asociada a una subcategoría."]
[{"$f":"A6+1","v":5},"Un producto puede estar asociado a más de un trazador presupuestal. En este sentido, los recursos no se suman, toda vez que son indicativos. "]
[{"$f":"A7+1","v":6},"Con respecto a la marcación de los compromisos (RP) en el sistema Bogdata, una vez se defina su procedimiento, se socializarán los lineamientos para su ejecución. "]
[7,"Los trazadores presupuestales se reportarán mensualmente en el archivo de “Formato de seguimiento 2023”, en la hoja 1 denominada “Trazador”, hasta tanto se realice la parametrización en Bogdata. El seguimiento se realiza a nivel de compromisos y giros mensualmente.\n Para compromisos y giros, mensualmente se deben relacionar los valores de manera independiente (No acumular)  y se deben totalizar en las columas \"Total Compromisos\" y  \"Total Giros\". Para el seguimiento mensual se incluiran las columnas de Comprimisos y Giros para cada mes a reportar  y se debe mantener la infomación registrada con anterioridad para guardar la trazabilidad de la misma. Se deben relacionar valores absolutos ($) y no porcentajes"]
[]
["B","Consideraciones Específicas"]
[1,"A continuación, se relacionan los pasos a seguir para el diligenciamiento del formato: "]
[null,"·         En la casilla “Tipo (Inversión- funcionamiento-Operación)” la entidad debe seleccionar una sola opción."]
[]
[2,"·          Si la entidad selecciona Inversión, debe continuar con los siguientes pasos:"]
[null,"ü  En la casilla denominada “Código Proyecto de Inversión/Rubro” debe incluir el código del Proyecto de Inversión; "]
[null,"ü  En la casilla “Elemento PEP” debe relacionar el código completo del elemto PEP asocaido al producto seleccionado, incluyendo los separadores \"/\""]
[null,"ü  En la casilla “Productos PMR” relacionar el código y producto inscrito en el PMR."]
[null,"ü  En la casilla “Trazador” incluir las siglas oficiales del trazador así:\n*Trazador Prespuestal para la Igualdad y Equidad de Genero - TPIEG"]
[null,"ü  En la casilla “Impacto directo o indirecto” realizar la clasificación atendiendo los conceptos establecidos en las guías de cada trazador y en coherencia con lo marcado en SEGPLAN."]
[null,"ü  En la casilla “Subcategoría” se debe relacionar el código establecido en las guías, el cual tiene una extensión de tre (3) letras."]
[null,"ü  En la casilla “Código indciador de Producto PMR relacionado con trazador” incluir únicamente los indicadores de producto que miden específicamente temas relacionados con el trazador. Si la entidad lo considera necesario, puede solicitar la creación de un indicador especifico, el cual será revisado y aprobado por la Dirección de Presupuesto de la Secretaría de Hacienda Distrital."]
[null,"ü  En las casillas “Inversión”: i) Presupuesto Inversión  Programado (Solo para trazador) se debe registrar el valor que la entidad tiene previsto para el cumplimiento del trazador. ii) Presupuesto Inversión Ejecutado (compromisos): la marcación debe ser a nivel de compromiso (RP) y iii)  Presupuesto Inversión Ejecutado (Giros) se deben registrar mensulamente los giros realizados con cargo al RP."]
[null,"ü  Importante: Cada RP relacionado debe ser marcado bajo una sola subcategoria "]
[]
[3,"·         Si la entidad selecciona Funcionamiento, debe continuar con los siguientes pasos: "]
[null,"ü  En la casilla denominada “Código Proyecto de Inversión/Rubro” debe incluir el código del Rubro."]
[null,"ü  En la casilla “Elemento PEP” debe relacionar el código completo del elemento PEP de funcionamiento."]
[null,"ü   En la casilla “Productos PMR” registrar N.A porque la información la arroja"]
[null,"ü  En la casilla “Trazador” incluir las siglas oficiales del trazador:  \n*Trazador Prespuestal para la Igualdad y Equidad de Genero - TPIEG"]
[null,"ü  En la casilla “Impacto directo o indirecto” realizar la clasificación (Directo o Indirecto) atendiendo los conceptos establecidos en las guías."]
[null,"ü  En la casilla “Subcategoría” se debe relacionar el código establecido en las guías de uso de los trazadores presupuestales  (tres letras)."]
[null,"ü  En la casilla “Código indciador de Producto PMR relacionado con trazador” relacionar N/A, esto teniendo en cuenta que no se seleccionó producto PMR."]
[null,"ü  En las casillas de “FUNCIONAMIENTO” i) Presupuesto funcionamiento  Programado (Solo para trazador) se debe registrar el valor que la entidad tiene previsto para el cumplimiento del trazador. ii) Presupuesto Funcionamiento Ejecutado (compromisos): la marcación debe ser a nivel de compromiso (RP) y iii)  Presupuesto FuncionamientoEjecutado (Giros) se deben registrar mensulamente los giros realizados. Mensualmente se deben relacionar los valores independientes y se deben totalizar en las columas Total Compromisos y  Total Giros.  Se deben relacionar valores absolutos ($) y no porcentajes"]
[null,"ü  Para el presupuesto de funcionamiento se debe incluir únicamente los compromisos (RP) que estén destinados en el 100% al trazador."]
[]
[4,"·         Si la entidad selecciona Operación, debe adelantar los siguientes pasos (solo aplica para EICE):"]
[null,"ü  En la casilla denominada “Código Proyecto de Inversión/Rubro” debe incluir el código del Rubro. "]
[null,"ü  En la casilla “Productos PMR” relacionar N/A"]
[null,"ü  En la casilla “Impacto directo o indirecto” realizar la clasificación atendiendo los conceptos establecidos en las guías."]
[null,"ü  En la casilla “Subcategoría” se debe relacionar el código establecido en las guías, el cual tiene una extensión de tres (3) letras."]
[null,"ü  En la casilla “Código indicador relacionado con trazador” relacionar N/A"]
[null,"ü  En las casillas de “OPERACIÓN”i) Presupuesto funcionamiento  Programado (Solo para trazador) se debe registrar el valor que la entidad tiene previsto para el cumplimiento del trazador. ii) Presupuesto Inversión Ejecutado (compromisos): la marcación debe ser a nivel de compromiso (RP) y iii)  Presupuesto Inversión Ejecutado (Giros) se deben registrar mensulamente los giros realizados. Mensualmente se deben relacionar los valores independientes y se deben totalizar en las columas Total Compromisos y  Total Giros.  Se deben relacionar valores absolutos ($) y no porcentajes"]
[null,"ü  Para el presupuesto de operación se debe incluir únicamente los compromisos (RP) que estén destinados en el 100% al trazador."]

{"sheet":"Tablas Listas Desplegables","index":3,"n_rows":241,"n_cols":18,"rows_kept":241,"cut":false,"hidden":true,"merged":[]}
["Tipo (Inversión- funcionamiento-Operación)",null,null,"Orden","Detalle Trazador","Trazador","TPGE","TPIEG","TPPD","TPJ","TPTCC","TPCP"]
["Inversión",null,null,1,"Trazador presupuestal de Grupos étnicos","TPGE","TPGE(EAA)-C01.Comunidades Negras, Afrocolombianos y Palenquera (NAP) Directo. Prácticas culturales con enfoque étnico diferencial.","TPIEG(GDA).Directo-C01.01.Empleabilidad y acceso al trabajo.","TPPD(DII)-C05.Ciudad accesible e incluyente.18.Indirecto.Comunicación incluyente y accesible",null,null,null,null,"01 - FDL Usaquén",null,null," ","Enero"]
["Funcionamiento",null,null,2,"Trazador presupeustal de Igualdad y equidad de género","TPIEG","TPGE(EAB)-C01.Comunidades Negras, Afrocolombianos y Palenquera (NAP) Directo. Autonomía étnica y gobierno propio.","TPIEG(GDB).Directo-C01.02.Emprendimiento económico.","TPPD(DDF)-C03.Protección, Bienestar y justicia social.11.Directo.Organizaciones de y para Personas con Discapacidad",null,null,null,null,"02 - FDL Chapinero",null,null," ","Febrero"]
["Operación",null,null,3,"Trazador presupuestal para población con discapacidad","TPPD","TPGE(EAC)-C01.Comunidades Negras, Afrocolombianos y Palenquera (NAP) Directo. Educación diferencial.","TPIEG(GDC).Directo-C01.03.Transferencias y provisión de servicios públicos.","TPPD(DIF)-C03.Protección, Bienestar y justicia social.12.Indirecto.Organizaciones de y para Personas con Discapacidad",null,null,null,null,"03 - FDL Santa fe",null,null," ","Marzo"]
[null,null,null,4,"Trazador presupuestal de Juventud","TPJ","TPGE(EAD)-C01.Comunidades Negras, Afrocolombianos y Palenquera (NAP) Directo. Medicina ancestral y tradicional.","TPIEG(GDD).Directo-C01.90.Transformación de imaginarios para la igualdad.","TPPD(DIC)-C02.Inclusión y Equidad en la Educación.06.Indirecto.Permanencia y calidad en el sistema educativo",null,null,null,null,"04 - FDL San Cristóbal",null,null," ","Abril"]
[null,null,null,5,"Trazador presupuestal de Territorialización y cultura ciudadana","TPTCC","TPGE(EAE)-C01.Comunidades Negras, Afrocolombianos y Palenquera (NAP) Directo. Economía propia.","TPIEG(GIA).Indirecto-C01.01.Empleabilidad y acceso al trabajo.","TPPD(DIH)-C04.Empleabilidad y Productividad.16.Indirecto.Vinculación laboral de Personas con Discapacidad",null,null,null,null,"05 - FDL Usme",null,null," ","Mayo"]
[null,null,null,6,"Trazador presupuestal de Construcción de Paz","TPCP","TPGE(EAF)-C01.Comunidades Negras, Afrocolombianos y Palenquera (NAP) Directo. Adecuación institucional y lucha contra el racismo y la discriminación.","TPIEG(GIB).Indirecto-C01.02.Emprendimiento económico.","TPPD(DIJ)-C05.Ciudad accesible e incluyente.20.Indirecto.Movilidad y entornos accesibles e inclusivos",null,null,null,null,"06 - FDL Tunjuelito",null,null," ","Junio"]
[null,null,null,null,null,null,"TPGE(EAG)-C01.Comunidades Negras, Afrocolombianos y Palenquera (NAP) Directo. Calidad de vida.","TPIEG(GIC).Indirecto-C01.03.Transferencias y provisión de servicios públicos.","TPPD(DIK)-C05.Ciudad accesible e incluyente.22.Indirecto.Vivienda digna y accesible",null,null,null,null,"07 - FDL Bosa",null,null,null,"Julio"]
[null,null,null,null,null,null,"TPGE(EAH)-C01.Comunidades Negras, Afrocolombianos y Palenquera (NAP) Directo. Mujeres.","TPIEG(GID).Indirecto-C01.90.Transformación de imaginarios para la igualdad.","TPPD(DIL)-C05.Ciudad accesible e incluyente.24.Indirecto.Prácticas culturales, artísticas, recreativas y deportivas accesibles e incluyentes",null,null,null,null,"08 - FDL Kennedy",null,null,null,"Agosto"]
[null,null,null,null,null,null,"TPGE(EAI)-C01.Comunidades Negras, Afrocolombianos y Palenquera (NAP) Indirecto. Prácticas culturales con enfoque étnico diferencial.","TPIEG(GDG).Directo-C02.02.Representación política.","TPPD(DIE)-C03.Protección, Bienestar y justicia social.10.Indirecto.Inclusión social integral",null,null,null,null,"09 - FDL Fontibón",null,null,null,"Septiembre"]
[null,null,null,null,null,null,"TPGE(EAJ)-C01.Comunidades Negras, Afrocolombianos y Palenquera (NAP) Indirecto. Autonomía étnica y gobierno propio.","TPIEG(GD1).Directo-C02.03.Ciudadanía activa promovida a través de la construcción de capacidades culturales.","TPPD(DIB)-C01.Salud y autonomía.04.Indirecto.Red de Cuidado colectivo – Rehabilitación Basada en Comunidad (RBC)",null,null,null,null,"10 - FDL Engativá",null,null,null,"Octubre"]
[null,null,null,null,null,null,"TPGE(EAK)-C01.Comunidades Negras, Afrocolombianos y Palenquera (NAP) Indirecto. Educación diferencial.","TPIEG(GDH).Directo-C02.90.Transformación de imaginarios para la igualdad.","TPPD(DIG)-C03.Protección, Bienestar y justicia social.14.Indirecto.Acceso a la justicia y capacidad jurídica",null,null,null,null,"11 - FDL Suba",null,null,null,"Noviembre"]
[null,null,null,null,null,null,"TPGE(EAL)-C01.Comunidades Negras, Afrocolombianos y Palenquera (NAP) Indirecto. Medicina ancestral y tradicional.","TPIEG(GIG).Indirecto-C02.02.Representación política.","TPPD(DDM)-C06.Reconocimiento y derechos del cuidador/a de Personas con Discapacidad.25.Directo.Servicios integrales para cuidadoras/es de Personas con Discapacidad",null,null,null,null,"12 - FDL Barrios Unidos",null,null,null,"Diciembre"]
[null,null,null,null,null,null,"TPGE(EAM)-C01.Comunidades Negras, Afrocolombianos y Palenquera (NAP) Indirecto. Economía propia.","TPIEG(GI1).Indirecto-C02.03.Ciudadanía activa promovida a través de la construcción de capacidades culturales.","TPPD(DDE)-C03.Protección, Bienestar y justicia social.09.Directo.Inclusión social integral",null,null,null,null,"13 - FDL Ciudad Bolivar"]
[null,null,null,null,null,null,"TPGE(EAN)-C01.Comunidades Negras, Afrocolombianos y Palenquera (NAP) Indirecto. Adecuación institucional y lucha contra el racismo y la discriminación.","TPIEG(GIH).Indirecto-C02.90.Transformación de imaginarios para la igualdad.","TPPD(DDH)-C04.Empleabilidad y Productividad.15.Directo.Vinculación laboral de Personas con Discapacidad",null,null,null,null,"14 - FDL Mártires"]
[null,null,null,null,null,null,"TPGE(EAO)-C01.Comunidades Negras, Afrocolombianos y Palenquera (NAP) Indirecto. Calidad de vida.","TPIEG(GDJ).Directo-C03.01.Prevención y atención en Salud.","TPPD(DIM)-C06.Reconocimiento y derechos del cuidador/a de Personas con Discapacidad.26.Indirecto.Servicios integrales para cuidadoras/es de Personas con Discapacidad",null,null,null,null,"15 - FDL Antonio Nariño"]
[null,null,null,null,null,null,"TPGE(EAP)-C01.Comunidades Negras, Afrocolombianos y Palenquera (NAP) Indirecto. Mujeres.","TPIEG(GDK).Directo-C03.02.Derechos sexuales y reproductivos.","TPPD(DDB)-C01.Salud y autonomía.03.Directo.Red de Cuidado colectivo – Rehabilitación Basada en Comunidad (RBC)",null,null,null,null,"16 - FDL Puente Aranda"]
[null,null,null,null,null,null,"TPGE(EBA)-C02.Comunidad Raizal Directo. Prácticas culturales con enfoque étnico diferencial.","TPIEG(GDL).Directo-C03.90.Transformación de imaginarios para la igualdad.","TPPD(DIA)-C01.Salud y autonomía.02.Indirecto.Acompañamiento a la atención integral en salud",null,null,null,null,"17 - FDL Candelaria"]
[null,null,null,null,null,null,"TPGE(EBB)-C02.Comunidad Raizal Directo. Autonomía étnica y gobierno propio.","TPIEG(GIJ).Indirecto-C03.01.Prevención y atención en Salud.","TPPD(DDN)-C06.Reconocimiento y derechos del cuidador/a de Personas con Discapacidad.27.Directo.Productividad y empleabilidad para Cuidadores/as de Personas con Discapacidad",null,null,null,null,"18 - FDL Rafael Uribe"]
[null,null,null,null,null,null,"TPGE(EBC)-C02.Comunidad Raizal Directo. Educación diferencial.","TPIEG(GIK).Indirecto-C03.02.Derechos sexuales y reproductivos.","TPPD(DIN)-C06.Reconocimiento y derechos del cuidador/a de Personas con Discapacidad.28.Indirecto.Productividad y empleabilidad para Cuidadores/as de Personas con Discapacidad",null,null,null,null,"19 - FDL Ciudad Bolivar"]
[null,null,null,null,null,null,"TPGE(EBD)-C02.Comunidad Raizal Directo. Medicina ancestral y tradicional.","TPIEG(GIL).Indirecto-C03.90.Transformación de imaginarios para la igualdad.","TPPD(DDA)-C01.Salud y autonomía.01.Directo.Acompañamiento a la atención integral en salud",null,null,null,null,"20 - FDL Sumapaz"]
[null,null,null,null,null,null,"TPGE(EBE)-C02.Comunidad Raizal Directo. Economía propia.","TPIEG(GDN).Directo-C04.01.Educación y profesionalización con equidad.","TPPD(DID)-C02.Inclusión y Equidad en la Educación.08.Indirecto.Acceso a educación superior",null,null,null,null,"0102 - Personería Distrital"]
[null,null,null,null,null,null,"TPGE(EBF)-C02.Comunidad Raizal Directo. Adecuación institucional y lucha contra el racismo y la discriminación.","TPIEG(GDO).Directo-C04.02.Acceso, uso y apropiación de las TIC.","TPPD(DDL)-C05.Ciudad accesible e incluyente.23.Directo.Prácticas culturales, artísticas, recreativas y deportivas accesibles e incluyentes",null,null,null,null,"0104 - Secretaría General"]
[null,null,null,null,null,null,"TPGE(EBG)-C02.Comunidad Raizal Directo. Calidad de vida.","TPIEG(GDP).Directo-C04.90.Transformación de imaginarios para la igualdad.","TPPD(DDJ)-C05.Ciudad accesible e incluyente.19.Directo.Movilidad y entornos accesibles e inclusivos",null,null,null,null,"0105 - Veeduría Distrital"]
[null,null,null,null,null,null,"TPGE(EBH)-C02.Comunidad Raizal Directo. Mujeres.","TPIEG(GIN).Indirecto-C04.01.Educación y profesionalización con equidad.",null,null,null,null,null,"0110 - Secretaría Distrital de Gobierno"]
[null,null,null,null,null,null,"TPGE(EBI)-C02.Comunidad Raizal Indirecto. Prácticas culturales con enfoque étnico diferencial.","TPIEG(GIO).Indirecto-C04.02.Acceso, uso y apropiación de las TIC.",null,null,null,null,null,"0111 - Secretaría Distrital de Hacienda"]
[null,null,null,null,null,null,"TPGE(EBJ)-C02.Comunidad Raizal Indirecto. Autonomía étnica y gobierno propio.","TPIEG(GIP).Indirecto-C04.90.Transformación de imaginarios para la igualdad.",null,null,null,null,null,"0112 - Secretaría de Educación del Distrito"]
[null,null,null,null,null,null,"TPGE(EBK)-C02.Comunidad Raizal Indirecto. Educación diferencial.","TPIEG(GDR).Directo-C05.01.Protección y atención a mujeres víctimas.",null,null,null,null,null,"0113 - Secretaría Distrital de Movilidad"]
[null,null,null,null,null,null,"TPGE(EBL)-C02.Comunidad Raizal Indirecto. Medicina ancestral y tradicional.","TPIEG(GDS).Directo-C05.02.Acceso a la justicia.",null,null,null,null,null,"0117 - Secretaría Distrital de Desarrollo Económico"]
[null,null,null,null,null,null,"TPGE(EBM)-C02.Comunidad Raizal Indirecto. Economía propia.","TPIEG(GDT).Directo-C05.03.Construcción de paz.",null,null,null,null,null,"0118 - Secretaría Distrital del Hábitat"]
[null,null,null,null,null,null,"TPGE(EBN)-C02.Comunidad Raizal Indirecto. Adecuación institucional y lucha contra el racismo y la discriminación.","TPIEG(GDU).Directo-C05.90.Transformación de imaginarios para la igualdad.",null,null,null,null,null,"0119 - Secretaría Distrital de Cultura, Recreación y Deporte"]
[null,null,null,null,null,null,"TPGE(EBO)-C02.Comunidad Raizal Indirecto. Calidad de vida.","TPIEG(GIR).Indirecto-C05.01.Protección y atención a mujeres víctimas.",null,null,null,null,null,"0120 - Secretaría Distrital de Planeación"]
[null,null,null,null,null,null,"TPGE(EBP)-C02.Comunidad Raizal Indirecto. Mujeres.","TPIEG(GIS).Indirecto-C05.02.Acceso a la justicia.",null,null,null,null,null,"0121 - Secretaría Distrital de la Mujer"]
[null,null,null,null,null,null,"TPGE(ECA)-C03.Pueblos y Comunidades Indígenas Directo. Prácticas culturales con enfoque étnico diferencial.","TPIEG(GIT).Indirecto-C05.03.Construcción de paz.",null,null,null,null,null,"0122 - Secretaría Distrital de Integración Social"]
[null,null,null,null,null,null,"TPGE(ECB)-C03.Pueblos y Comunidades Indígenas Directo. Autonomía étnica y gobierno propio.","TPIEG(GIU).Indirecto-C05.90.Transformación de imaginarios para la igualdad.",null,null,null,null,null,"0125 - Departamento Administrativo del Servicio Civil Distrital"]
[null,null,null,null,null,null,"TPGE(ECC)-C03.Pueblos y Comunidades Indígenas Directo. Educación diferencial.","TPIEG(GDW).Directo-C90.01.Reducción del tiempo de trabajo de cuidado no remunerado.",null,null,null,null,null,"0126 - Secretaría Distrital de Ambiente"]
[null,null,null,null,null,null,"TPGE(ECD)-C03.Pueblos y Comunidades Indígenas Directo. Medicina ancestral y tradicional.","TPIEG(GDX).Directo-C90.02.Reconocimiento del trabajo de cuidado.",null,null,null,null,null,"0127 - Departamento Administrativo de la Defensoría del Espacio Público"]
[null,null,null,null,null,null,"TPGE(ECE)-C03.Pueblos y Comunidades Indígenas Directo. Economía propia.","TPIEG(GDY).Directo-C90.90.Transformación de imaginarios para la igualdad.",null,null,null,null,null,"0131 - Unidad Administrativa Especial Cuerpo Oficial de Bomberos"]
[null,null,null,null,null,null,"TPGE(ECF)-C03.Pueblos y Comunidades Indígenas Directo. Adecuación institucional y lucha contra el racismo y la discriminación.","TPIEG(GIW).Indirecto-C90.01.Reducción del tiempo de trabajo de cuidado no remunerado.",null,null,null,null,null,"0136 - Secretaría Jurídica Distrital"]
[null,null,null,null,null,null,"TPGE(ECG)-C03.Pueblos y Comunidades Indígenas Directo. Calidad de vida.","TPIEG(GIX).Indirecto-C90.02.Reconocimiento del trabajo de cuidado.",null,null,null,null,null,"0137 - Secretaría Distrital de Seguridad, Convivencia y Justicia"]
[null,null,null,null,null,null,"TPGE(ECH)-C03.Pueblos y Comunidades Indígenas Directo. Mujeres.","TPIEG(GIY).Indirecto-C90.90.Transformación de imaginarios para la igualdad.",null,null,null,null,null,"0200 - Instituto para la Economía Social"]
[null,null,null,null,null,null,"TPGE(ECI)-C03.Pueblos y Comunidades Indígenas Indirecto. Prácticas culturales con enfoque étnico diferencial.","TPIEG(GD2).Directo-C91.01.Adecuación institucional con enfoque de género para la garantía de derechos.",null,null,null,null,null,"0201 - Secretaría Distrital de Salud / Fondo Financiero Distrital de Salud"]
[null,null,null,null,null,null,"TPGE(ECJ)-C03.Pueblos y Comunidades Indígenas Indirecto. Autonomía étnica y gobierno propio.","TPIEG(GD3).Directo-C91.02.Adecuación de infraestructura física y tecnológica con enfoque de género.",null,null,null,null,null,"0203 - Instituto Distrital de Gestión de Riesgos y Cambio Climático"]
[null,null,null,null,null,null,"TPGE(ECK)-C03.Pueblos y Comunidades Indígenas Indirecto. Educación diferencial.","TPIEG(GD4).Directo-C91.90.Transformación de imaginarios para la igualdad.",null,null,null,null,null,"0204 - Instituto de Desarrollo Urbano"]
[null,null,null,null,null,null,"TPGE(ECL)-C03.Pueblos y Comunidades Indígenas Indirecto. Medicina ancestral y tradicional.","TPIEG(GI2).Indirecto-C91.01.Adecuación institucional con enfoque de género para la garantía de derechos.",null,null,null,null,null,"0206 - Fondo de Prestaciones Económicas, Cesantías y Pensiones"]
[null,null,null,null,null,null,"TPGE(ECM)-C03.Pueblos y Comunidades Indígenas Indirecto. Economía propia.","TPIEG(GI3).Indirecto-C91.02.Adecuación de infraestructura física y tecnológica con enfoque de género.",null,null,null,null,null,"0208 - Caja de Vivienda Popular"]
[null,null,null,null,null,null,"TPGE(ECN)-C03.Pueblos y Comunidades Indígenas Indirecto. Adecuación institucional y lucha contra el racismo y la discriminación.","TPIEG(GI4).Indirecto-C91.90.Transformación de imaginarios para la igualdad.",null,null,null,null,null,"0211 - Instituto Distrital de Recreación y Deporte"]
[null,null,null,null,null,null,"TPGE(ECO)-C03.Pueblos y Comunidades Indígenas Indirecto. Calidad de vida.",null,null,null,null,null,null,"0213 - Instituto Distrital del Patrimonio Cultural"]
[null,null,null,null,null,null,"TPGE(ECP)-C03.Pueblos y Comunidades Indígenas Indirecto. Mujeres.",null,null,null,null,null,null,"0214 - Instituto Distrital para la Protección de la Niñez y la Juventud"]
[null,null,null,null,null,null,"TPGE(EDA)-C04.Pueblo Rrom o Gitano Directo. Prácticas culturales con enfoque étnico diferencial.",null,null,null,null,null,null,"0215 - Fundación Gilberto Alzate Avendaño"]
[null,null,null,null,null,null,"TPGE(EDB)-C04.Pueblo Rrom o Gitano Directo. Autonomía étnica y gobierno propio.",null,null,null,null,null,null,"0216 - Orquesta Filarmónica de Bogotá"]
[null,null,null,null,null,null,"TPGE(EDC)-C04.Pueblo Rrom o Gitano Directo. Educación diferencial.",null,null,null,null,null,null,"0218 - Jardín Botánico José Celestino Mutis"]
[null,null,null,null,null,null,"TPGE(EDD)-C04.Pueblo Rrom o Gitano Directo. Medicina ancestral y tradicional.",null,null,null,null,null,null,"0219 - Instituto para la Investigación Educativa y el Desarrollo Pedagógico"]
[null,null,null,null,null,null,"TPGE(EDE)-C04.Pueblo Rrom o Gitano Directo. Economía propia.",null,null,null,null,null,null,"0220 - Instituto Distrital de la Participación y Acción Comunal"]
[null,null,null,null,null,null,"TPGE(EDF)-C04.Pueblo Rrom o Gitano Directo. Adecuación institucional y lucha contra el racismo y la discriminación.",null,null,null,null,null,null,"0221 - Instituto Distrital de Turismo"]
[null,null,null,null,null,null,"TPGE(EDG)-C04.Pueblo Rrom o Gitano Directo. Calidad de vida.",null,null,null,null,null,null,"0222 - Instituto Distrital de las Artes"]
[null,null,null,null,null,null,"TPGE(EDH)-C04.Pueblo Rrom o Gitano Directo. Mujeres.",null,null,null,null,null,null,"0226 - Unidad Administrativa Especial de Catastro Distrital"]
[null,null,null,null,null,null,"TPGE(EDI)-C04.Pueblo Rrom o Gitano Indirecto. Prácticas culturales con enfoque étnico diferencial.",null,null,null,null,null,null,"0227 - Unidad Administrativa Especial de Rehabilitación y Mantenimiento Vial"]
[null,null,null,null,null,null,"TPGE(EDJ)-C04.Pueblo Rrom o Gitano Indirecto. Autonomía étnica y gobierno propio.",null,null,null,null,null,null,"0228 - Unidad Administrativa Especial de Servicios Públicos"]
[null,null,null,null,null,null,"TPGE(EDK)-C04.Pueblo Rrom o Gitano Indirecto. Educación diferencial.",null,null,null,null,null,null,"0229 - Instituto Distrital de Protección y Bienestar Animal"]
[null,null,null,null,null,null,"TPGE(EDL)-C04.Pueblo Rrom o Gitano Indirecto. Medicina ancestral y tradicional.",null,null,null,null,null,null,"0230 - Universidad Distrital Francisco José de Caldas"]
[null,null,null,null,null,null,"TPGE(EDM)-C04.Pueblo Rrom o Gitano Indirecto. Economía propia.",null,null,null,null,null,null,"0235 - Contraloría Distrital"]
[null,null,null,null,null,null,"TPGE(EDN)-C04.Pueblo Rrom o Gitano Indirecto. Adecuación institucional y lucha contra el racismo y la discriminación.",null,null,null,null,null,null,"0240 - Lotería de Bogotá"]
[null,null,null,null,null,null,"TPGE(EDO)-C04.Pueblo Rrom o Gitano Indirecto. Calidad de vida.",null,null,null,null,null,null,"0260 - Canal Capital"]
[null,null,null,null,null,null,"TPGE(EDP)-C04.Pueblo Rrom o Gitano Indirecto. Mujeres.",null,null,null,null,null,null,"0262 - Empresa de Transporte del Tercer Milenio - Transmilenio S.A."]
[null,null,null,null,null,null,"TPGE(EEA)-C05.Comunidades Negras, Afrocolombianos y Palenquera (NAP) - Comunidad Raizal Directo. Prácticas culturales con enfoque étnico diferencial.",null,null,null,null,null,null,"0263 - Empresa de Renovación y Desarrollo Urbano"]
[null,null,null,null,null,null,"TPGE(EEB)-C05.Comunidades Negras, Afrocolombianos y Palenquera (NAP) - Comunidad Raizal Directo. Autonomía étnica y gobierno propio.",null,null,null,null,null,null,"0265 - Empresa de Acueducto y Alcantarillado de Bogotá"]
[null,null,null,null,null,null,"TPGE(EEC)-C05.Comunidades Negras, Afrocolombianos y Palenquera (NAP) - Comunidad Raizal Directo. Educación diferencial.",null,null,null,null,null,null,"0266 - Empresa Metro de Bogotá S.A."]
[null,null,null,null,null,null,"TPGE(EED)-C05.Comunidades Negras, Afrocolombianos y Palenquera (NAP) - Comunidad Raizal Directo. Medicina ancestral y tradicional.",null,null,null,null,null,null,"0501 - Agencia Distrital para la Educación Superior, la Ciencia y la Tecnología"]
[null,null,null,null,null,null,"TPGE(EEE)-C05.Comunidades Negras, Afrocolombianos y Palenquera (NAP) - Comunidad Raizal Directo. Economía propia."]
[null,null,null,null,null,null,"TPGE(EEF)-C05.Comunidades Negras, Afrocolombianos y Palenquera (NAP) - Comunidad Raizal Directo. Adecuación institucional y lucha contra el racismo y la discriminación."]
[null,null,null,null,null,null,"TPGE(EEG)-C05.Comunidades Negras, Afrocolombianos y Palenquera (NAP) - Comunidad Raizal Directo. Calidad de vida."]
[null,null,null,null,null,null,"TPGE(EEH)-C05.Comunidades Negras, Afrocolombianos y Palenquera (NAP) - Comunidad Raizal Directo. Mujeres."]
[null,null,null,null,null,null,"TPGE(EEI)-C05.Comunidades Negras, Afrocolombianos y Palenquera (NAP) - Comunidad Raizal Indirecto. Prácticas culturales con enfoque étnico diferencial."]
[null,null,null,null,null,null,"TPGE(EEJ)-C05.Comunidades Negras, Afrocolombianos y Palenquera (NAP) - Comunidad Raizal Indirecto. Autonomía étnica y gobierno propio."]
[null,null,null,null,null,null,"TPGE(EEK)-C05.Comunidades Negras, Afrocolombianos y Palenquera (NAP) - Comunidad Raizal Indirecto. Educación diferencial."]
[null,null,null,null,null,null,"TPGE(EEL)-C05.Comunidades Negras, Afrocolombianos y Palenquera (NAP) - Comunidad Raizal Indirecto. Medicina ancestral y tradicional."]
[null,null,null,null,null,null,"TPGE(EEM)-C05.Comunidades Negras, Afrocolombianos y Palenquera (NAP) - Comunidad Raizal Indirecto. Economía propia."]
[null,null,null,null,null,null,"TPGE(EEN)-C05.Comunidades Negras, Afrocolombianos y Palenquera (NAP) - Comunidad Raizal Indirecto. Adecuación institucional y lucha contra el racismo y la discriminación."]
[null,null,null,null,null,null,"TPGE(EEO)-C05.Comunidades Negras, Afrocolombianos y Palenquera (NAP) - Comunidad Raizal Indirecto. Calidad de vida."]
[null,null,null,null,null,null,"TPGE(EEP)-C05.Comunidades Negras, Afrocolombianos y Palenquera (NAP) - Comunidad Raizal Indirecto. Mujeres."]
[null,null,null,null,null,null,"TPGE(EFA)-C06.Comunidades Negras, Afrocolombianos y Palenquera (NAP) - Pueblos y Comunidades Indígenas Directo. Prácticas culturales con enfoque étnico diferencial."]
[null,null,null,null,null,null,"TPGE(EFB)-C06.Comunidades Negras, Afrocolombianos y Palenquera (NAP) - Pueblos y Comunidades Indígenas Directo. Autonomía étnica y gobierno propio."]
[null,null,null,null,null,null,"TPGE(EFC)-C06.Comunidades Negras, Afrocolombianos y Palenquera (NAP) - Pueblos y Comunidades Indígenas Directo. Educación diferencial."]
[null,null,null,null,null,null,"TPGE(EFD)-C06.Comunidades Negras, Afrocolombianos y Palenquera (NAP) - Pueblos y Comunidades Indígenas Directo. Medicina ancestral y tradicional."]
[null,null,null,null,null,null,"TPGE(EFE)-C06.Comunidades Negras, Afrocolombianos y Palenquera (NAP) - Pueblos y Comunidades Indígenas Directo. Economía propia."]
[null,null,null,null,null,null,"TPGE(EFF)-C06.Comunidades Negras, Afrocolombianos y Palenquera (NAP) - Pueblos y Comunidades Indígenas Directo. Adecuación institucional y lucha contra el racismo y la discriminación."]
[null,null,null,null,null,null,"TPGE(EFG)-C06.Comunidades Negras, Afrocolombianos y Palenquera (NAP) - Pueblos y Comunidades Indígenas Directo. Calidad de vida."]
[null,null,null,null,null,null,"TPGE(EFH)-C06.Comunidades Negras, Afrocolombianos y Palenquera (NAP) - Pueblos y Comunidades Indígenas Directo. Mujeres."]
[null,null,null,null,null,null,"TPGE(EFI)-C06.Comunidades Negras, Afrocolombianos y Palenquera (NAP) - Pueblos y Comunidades Indígenas Indirecto. Prácticas culturales con enfoque étnico diferencial."]
[null,null,null,null,null,null,"TPGE(EFJ)-C06.Comunidades Negras, Afrocolombianos y Palenquera (NAP) - Pueblos y Comunidades Indígenas Indirecto. Autonomía étnica y gobierno propio."]
[null,null,null,null,null,null,"TPGE(EFK)-C06.Comunidades Negras, Afrocolombianos y Palenquera (NAP) - Pueblos y Comunidades Indígenas Indirecto. Educación diferencial."]
[null,null,null,null,null,null,"TPGE(EFL)-C06.Comunidades Negras, Afrocolombianos y Palenquera (NAP) - Pueblos y Comunidades Indígenas Indirecto. Medicina ancestral y tradicional."]
[null,null,null,null,null,null,"TPGE(EFM)-C06.Comunidades Negras, Afrocolombianos y Palenquera (NAP) - Pueblos y Comunidades Indígenas Indirecto. Economía propia."]
[null,null,null,null,null,null,"TPGE(EFN)-C06.Comunidades Negras, Afrocolombianos y Palenquera (NAP) - Pueblos y Comunidades Indígenas Indirecto. Adecuación institucional y lucha contra el racismo y la discriminación."]
[null,null,null,null,null,null,"TPGE(EFO)-C06.Comunidades Negras, Afrocolombianos y Palenquera (NAP) - Pueblos y Comunidades Indígenas Indirecto. Calidad de vida."]
[null,null,null,null,null,null,"TPGE(EFP)-C06.Comunidades Negras, Afrocolombianos y Palenquera (NAP) - Pueblos y Comunidades Indígenas Indirecto. Mujeres."]
[null,null,null,null,null,null,"TPGE(EGA)-C07.Comunidades Negras, Afrocolombianos y Palenquera (NAP) - Pueblo Rrom o Gitano Directo. Prácticas culturales con enfoque étnico diferencial."]
[null,null,null,null,null,null,"TPGE(EGB)-C07.Comunidades Negras, Afrocolombianos y Palenquera (NAP) - Pueblo Rrom o Gitano Directo. Autonomía étnica y gobierno propio."]
[null,null,null,null,null,null,"TPGE(EGC)-C07.Comunidades Negras, Afrocolombianos y Palenquera (NAP) - Pueblo Rrom o Gitano Directo. Educación diferencial."]
[null,null,null,null,null,null,"TPGE(EGD)-C07.Comunidades Negras, Afrocolombianos y Palenquera (NAP) - Pueblo Rrom o Gitano Directo. Medicina ancestral y tradicional."]
[null,null,null,null,null,null,"TPGE(EGE)-C07.Comunidades Negras, Afrocolombianos y Palenquera (NAP) - Pueblo Rrom o Gitano Directo. Economía propia."]
[null,null,null,null,null,null,"TPGE(EGF)-C07.Comunidades Negras, Afrocolombianos y Palenquera (NAP) - Pueblo Rrom o Gitano Directo. Adecuación institucional y lucha contra el racismo y la discriminación."]
[null,null,null,null,null,null,"TPGE(EGG)-C07.Comunidades Negras, Afrocolombianos y Palenquera (NAP) - Pueblo Rrom o Gitano Directo. Calidad de vida."]
[null,null,null,null,null,null,"TPGE(EGH)-C07.Comunidades Negras, Afrocolombianos y Palenquera (NAP) - Pueblo Rrom o Gitano Directo. Mujeres."]
[null,null,null,null,null,null,"TPGE(EGI)-C07.Comunidades Negras, Afrocolombianos y Palenquera (NAP) - Pueblo Rrom o Gitano Indirecto. Prácticas culturales con enfoque étnico diferencial."]
[null,null,null,null,null,null,"TPGE(EGJ)-C07.Comunidades Negras, Afrocolombianos y Palenquera (NAP) - Pueblo Rrom o Gitano Indirecto. Autonomía étnica y gobierno propio."]
[null,null,null,null,null,null,"TPGE(EGK)-C07.Comunidades Negras, Afrocolombianos y Palenquera (NAP) - Pueblo Rrom o Gitano Indirecto. Educación diferencial."]
[null,null,null,null,null,null,"TPGE(EGL)-C07.Comunidades Negras, Afrocolombianos y Palenquera (NAP) - Pueblo Rrom o Gitano Indirecto. Medicina ancestral y tradicional."]
[null,null,null,null,null,null,"TPGE(EGM)-C07.Comunidades Negras, Afrocolombianos y Palenquera (NAP) - Pueblo Rrom o Gitano Indirecto. Economía propia."]
[null,null,null,null,null,null,"TPGE(EGN)-C07.Comunidades Negras, Afrocolombianos y Palenquera (NAP) - Pueblo Rrom o Gitano Indirecto. Adecuación institucional y lucha contra el racismo y la discriminación."]
[null,null,null,null,null,null,"TPGE(EGO)-C07.Comunidades Negras, Afrocolombianos y Palenquera (NAP) - Pueblo Rrom o Gitano Indirecto. Calidad de vida."]
[null,null,null,null,null,null,"TPGE(EGP)-C07.Comunidades Negras, Afrocolombianos y Palenquera (NAP) - Pueblo Rrom o Gitano Indirecto. Mujeres."]
[null,null,null,null,null,null,"TPGE(EHA)-C08.Comunidad Raizal  - Pueblos y Comunidades Indígenas Directo. Prácticas culturales con enfoque étnico diferencial."]
[null,null,null,null,null,null,"TPGE(EHB)-C08.Comunidad Raizal  - Pueblos y Comunidades Indígenas Directo. Autonomía étnica y gobierno propio."]
[null,null,null,null,null,null,"TPGE(EHC)-C08.Comunidad Raizal  - Pueblos y Comunidades Indígenas Directo. Educación diferencial."]
[null,null,null,null,null,null,"TPGE(EHD)-C08.Comunidad Raizal  - Pueblos y Comunidades Indígenas Directo. Medicina ancestral y tradicional."]
[null,null,null,null,null,null,"TPGE(EHE)-C08.Comunidad Raizal  - Pueblos y Comunidades Indígenas Directo. Economía propia."]
[null,null,null,null,null,null,"TPGE(EHF)-C08.Comunidad Raizal  - Pueblos y Comunidades Indígenas Directo. Adecuación institucional y lucha contra el racismo y la discriminación."]
[null,null,null,null,null,null,"TPGE(EHG)-C08.Comunidad Raizal  - Pueblos y Comunidades Indígenas Directo. Calidad de vida."]
[null,null,null,null,null,null,"TPGE(EHH)-C08.Comunidad Raizal  - Pueblos y Comunidades Indígenas Directo. Mujeres."]
[null,null,null,null,null,null,"TPGE(EHI)-C08.Comunidad Raizal  - Pueblos y Comunidades Indígenas Indirecto. Prácticas culturales con enfoque étnico diferencial."]
[null,null,null,null,null,null,"TPGE(EHJ)-C08.Comunidad Raizal  - Pueblos y Comunidades Indígenas Indirecto. Autonomía étnica y gobierno propio."]
[null,null,null,null,null,null,"TPGE(EHK)-C08.Comunidad Raizal  - Pueblos y Comunidades Indígenas Indirecto. Educación diferencial."]
[null,null,null,null,null,null,"TPGE(EHL)-C08.Comunidad Raizal  - Pueblos y Comunidades Indígenas Indirecto. Medicina ancestral y tradicional."]
[null,null,null,null,null,null,"TPGE(EHM)-C08.Comunidad Raizal  - Pueblos y Comunidades Indígenas Indirecto. Economía propia."]
[null,null,null,null,null,null,"TPGE(EHN)-C08.Comunidad Raizal  - Pueblos y Comunidades Indígenas Indirecto. Adecuación institucional y lucha contra el racismo y la discriminación."]
[null,null,null,null,null,null,"TPGE(EHO)-C08.Comunidad Raizal  - Pueblos y Comunidades Indígenas Indirecto. Calidad de vida."]
[null,null,null,null,null,null,"TPGE(EHP)-C08.Comunidad Raizal  - Pueblos y Comunidades Indígenas Indirecto. Mujeres."]
[null,null,null,null,null,null,"TPGE(EIA)-C09.Comunidad Raizal  - Pueblo Rrom o Gitano Directo. Prácticas culturales con enfoque étnico diferencial."]
[null,null,null,null,null,null,"TPGE(EIB)-C09.Comunidad Raizal  - Pueblo Rrom o Gitano Directo. Autonomía étnica y gobierno propio."]
[null,null,null,null,null,null,"TPGE(EIC)-C09.Comunidad Raizal  - Pueblo Rrom o Gitano Directo. Educación diferencial."]
[null,null,null,null,null,null,"TPGE(EID)-C09.Comunidad Raizal  - Pueblo Rrom o Gitano Directo. Medicina ancestral y tradicional."]
[null,null,null,null,null,null,"TPGE(EIE)-C09.Comunidad Raizal  - Pueblo Rrom o Gitano Directo. Economía propia."]
[null,null,null,null,null,null,"TPGE(EIF)-C09.Comunidad Raizal  - Pueblo Rrom o Gitano Directo. Adecuación institucional y lucha contra el racismo y la discriminación."]
[null,null,null,null,null,null,"TPGE(EIG)-C09.Comunidad Raizal  - Pueblo Rrom o Gitano Directo. Calidad de vida."]
[null,null,null,null,null,null,"TPGE(EIH)-C09.Comunidad Raizal  - Pueblo Rrom o Gitano Directo. Mujeres."]
[null,null,null,null,null,null,"TPGE(EII)-C09.Comunidad Raizal  - Pueblo Rrom o Gitano Indirecto. Prácticas culturales con enfoque étnico diferencial."]
[null,null,null,null,null,null,"TPGE(EIJ)-C09.Comunidad Raizal  - Pueblo Rrom o Gitano Indirecto. Autonomía étnica y gobierno propio."]
[null,null,null,null,null,null,"TPGE(EIK)-C09.Comunidad Raizal  - Pueblo Rrom o Gitano Indirecto. Educación diferencial."]
[null,null,null,null,null,null,"TPGE(EIL)-C09.Comunidad Raizal  - Pueblo Rrom o Gitano Indirecto. Medicina ancestral y tradicional."]
[null,null,null,null,null,null,"TPGE(EIM)-C09.Comunidad Raizal  - Pueblo Rrom o Gitano Indirecto. Economía propia."]
[null,null,null,null,null,null,"TPGE(EIN)-C09.Comunidad Raizal  - Pueblo Rrom o Gitano Indirecto. Adecuación institucional y lucha contra el racismo y la discriminación."]
[null,null,null,null,null,null,"TPGE(EIO)-C09.Comunidad Raizal  - Pueblo Rrom o Gitano Indirecto. Calidad de vida."]
[null,null,null,null,null,null,"TPGE(EIP)-C09.Comunidad Raizal  - Pueblo Rrom o Gitano Indirecto. Mujeres."]
[null,null,null,null,null,null,"TPGE(EJA)-C10.Pueblos y Comunidades Indígenas - Pueblo Rrom o Gitano Directo. Prácticas culturales con enfoque étnico diferencial."]
[null,null,null,null,null,null,"TPGE(EJB)-C10.Pueblos y Comunidades Indígenas - Pueblo Rrom o Gitano Directo. Autonomía étnica y gobierno propio."]
[null,null,null,null,null,null,"TPGE(EJC)-C10.Pueblos y Comunidades Indígenas - Pueblo Rrom o Gitano Directo. Educación diferencial."]
[null,null,null,null,null,null,"TPGE(EJD)-C10.Pueblos y Comunidades Indígenas - Pueblo Rrom o Gitano Directo. Medicina ancestral y tradicional."]
[null,null,null,null,null,null,"TPGE(EJE)-C10.Pueblos y Comunidades Indígenas - Pueblo Rrom o Gitano Directo. Economía propia."]
[null,null,null,null,null,null,"TPGE(EJF)-C10.Pueblos y Comunidades Indígenas - Pueblo Rrom o Gitano Directo. Adecuación institucional y lucha contra el racismo y la discriminación."]
[null,null,null,null,null,null,"TPGE(EJG)-C10.Pueblos y Comunidades Indígenas - Pueblo Rrom o Gitano Directo. Calidad de vida."]
[null,null,null,null,null,null,"TPGE(EJH)-C10.Pueblos y Comunidades Indígenas - Pueblo Rrom o Gitano Directo. Mujeres."]
[null,null,null,null,null,null,"TPGE(EJI)-C10.Pueblos y Comunidades Indígenas - Pueblo Rrom o Gitano Indirecto. Prácticas culturales con enfoque étnico diferencial."]
[null,null,null,null,null,null,"TPGE(EJJ)-C10.Pueblos y Comunidades Indígenas - Pueblo Rrom o Gitano Indirecto. Autonomía étnica y gobierno propio."]
[null,null,null,null,null,null,"TPGE(EJK)-C10.Pueblos y Comunidades Indígenas - Pueblo Rrom o Gitano Indirecto. Educación diferencial."]
[null,null,null,null,null,null,"TPGE(EJL)-C10.Pueblos y Comunidades Indígenas - Pueblo Rrom o Gitano Indirecto. Medicina ancestral y tradicional."]
[null,null,null,null,null,null,"TPGE(EJM)-C10.Pueblos y Comunidades Indígenas - Pueblo Rrom o Gitano Indirecto. Economía propia."]
[null,null,null,null,null,null,"TPGE(EJN)-C10.Pueblos y Comunidades Indígenas - Pueblo Rrom o Gitano Indirecto. Adecuación institucional y lucha contra el racismo y la discriminación."]
[null,null,null,null,null,null,"TPGE(EJO)-C10.Pueblos y Comunidades Indígenas - Pueblo Rrom o Gitano Indirecto. Calidad de vida."]
[null,null,null,null,null,null,"TPGE(EJP)-C10.Pueblos y Comunidades Indígenas - Pueblo Rrom o Gitano Indirecto. Mujeres."]
[null,null,null,null,null,null,"TPGE(EKA)-C11.Comunidades Negras, Afrocolombianos y Palenquera (NAP) - Comunidad Raizal - Pueblos y Comunidades Indígenas  Directo. Prácticas culturales con enfoque étnico diferencial."]
[null,null,null,null,null,null,"TPGE(EKB)-C11.Comunidades Negras, Afrocolombianos y Palenquera (NAP) - Comunidad Raizal - Pueblos y Comunidades Indígenas  Directo. Autonomía étnica y gobierno propio."]
[null,null,null,null,null,null,"TPGE(EKC)-C11.Comunidades Negras, Afrocolombianos y Palenquera (NAP) - Comunidad Raizal - Pueblos y Comunidades Indígenas  Directo. Educación diferencial."]
[null,null,null,null,null,null,"TPGE(EKD)-C11.Comunidades Negras, Afrocolombianos y Palenquera (NAP) - Comunidad Raizal - Pueblos y Comunidades Indígenas  Directo. Medicina ancestral y tradicional."]
[null,null,null,null,null,null,"TPGE(EKE)-C11.Comunidades Negras, Afrocolombianos y Palenquera (NAP) - Comunidad Raizal - Pueblos y Comunidades Indígenas  Directo. Economía propia."]
[null,null,null,null,null,null,"TPGE(EKF)-C11.Comunidades Negras, Afrocolombianos y Palenquera (NAP) - Comunidad Raizal - Pueblos y Comunidades Indígenas  Directo. Adecuación institucional y lucha contra el racismo y la discriminación."]
[null,null,null,null,null,null,"TPGE(EKG)-C11.Comunidades Negras, Afrocolombianos y Palenquera (NAP) - Comunidad Raizal - Pueblos y Comunidades Indígenas  Directo. Calidad de vida."]
[null,null,null,null,null,null,"TPGE(EKH)-C11.Comunidades Negras, Afrocolombianos y Palenquera (NAP) - Comunidad Raizal - Pueblos y Comunidades Indígenas  Directo. Mujeres."]
[null,null,null,null,null,null,"TPGE(EKI)-C11.Comunidades Negras, Afrocolombianos y Palenquera (NAP) - Comunidad Raizal - Pueblos y Comunidades Indígenas  Indirecto. Prácticas culturales con enfoque étnico diferencial."]
[null,null,null,null,null,null,"TPGE(EKJ)-C11.Comunidades Negras, Afrocolombianos y Palenquera (NAP) - Comunidad Raizal - Pueblos y Comunidades Indígenas  Indirecto. Autonomía étnica y gobierno propio."]
[null,null,null,null,null,null,"TPGE(EKK)-C11.Comunidades Negras, Afrocolombianos y Palenquera (NAP) - Comunidad Raizal - Pueblos y Comunidades Indígenas  Indirecto. Educación diferencial."]
[null,null,null,null,null,null,"TPGE(EKL)-C11.Comunidades Negras, Afrocolombianos y Palenquera (NAP) - Comunidad Raizal - Pueblos y Comunidades Indígenas  Indirecto. Medicina ancestral y tradicional."]
[null,null,null,null,null,null,"TPGE(EKM)-C11.Comunidades Negras, Afrocolombianos y Palenquera (NAP) - Comunidad Raizal - Pueblos y Comunidades Indígenas  Indirecto. Economía propia."]
[null,null,null,null,null,null,"TPGE(EKN)-C11.Comunidades Negras, Afrocolombianos y Palenquera (NAP) - Comunidad Raizal - Pueblos y Comunidades Indígenas  Indirecto. Adecuación institucional y lucha contra el racismo y la discriminación."]
[null,null,null,null,null,null,"TPGE(EKO)-C11.Comunidades Negras, Afrocolombianos y Palenquera (NAP) - Comunidad Raizal - Pueblos y Comunidades Indígenas  Indirecto. Calidad de vida."]
[null,null,null,null,null,null,"TPGE(EKP)-C11.Comunidades Negras, Afrocolombianos y Palenquera (NAP) - Comunidad Raizal - Pueblos y Comunidades Indígenas  Indirecto. Mujeres."]
[null,null,null,null,null,null,"TPGE(ELA)-C12.Comunidades Negras, Afrocolombianos y Palenquera (NAP) - Pueblos y Comunidades Indígenas - Pueblo Rrom o Gitano Directo. Prácticas culturales con enfoque étnico diferencial."]
[null,null,null,null,null,null,"TPGE(ELB)-C12.Comunidades Negras, Afrocolombianos y Palenquera (NAP) - Pueblos y Comunidades Indígenas - Pueblo Rrom o Gitano Directo. Autonomía étnica y gobierno propio."]
[null,null,null,null,null,null,"TPGE(ELC)-C12.Comunidades Negras, Afrocolombianos y Palenquera (NAP) - Pueblos y Comunidades Indígenas - Pueblo Rrom o Gitano Directo. Educación diferencial."]
[null,null,null,null,null,null,"TPGE(ELD)-C12.Comunidades Negras, Afrocolombianos y Palenquera (NAP) - Pueblos y Comunidades Indígenas - Pueblo Rrom o Gitano Directo. Medicina ancestral y tradicional."]
[null,null,null,null,null,null,"TPGE(ELE)-C12.Comunidades Negras, Afrocolombianos y Palenquera (NAP) - Pueblos y Comunidades Indígenas - Pueblo Rrom o Gitano Directo. Economía propia."]
[null,null,null,null,null,null,"TPGE(ELF)-C12.Comunidades Negras, Afrocolombianos y Palenquera (NAP) - Pueblos y Comunidades Indígenas - Pueblo Rrom o Gitano Directo. Adecuación institucional y lucha contra el racismo y la discriminación."]
[null,null,null,null,null,null,"TPGE(ELG)-C12.Comunidades Negras, Afrocolombianos y Palenquera (NAP) - Pueblos y Comunidades Indígenas - Pueblo Rrom o Gitano Directo. Calidad de vida."]
[null,null,null,null,null,null,"TPGE(ELH)-C12.Comunidades Negras, Afrocolombianos y Palenquera (NAP) - Pueblos y Comunidades Indígenas - Pueblo Rrom o Gitano Directo. Mujeres."]
[null,null,null,null,null,null,"TPGE(ELI)-C12.Comunidades Negras, Afrocolombianos y Palenquera (NAP) - Pueblos y Comunidades Indígenas - Pueblo Rrom o Gitano Indirecto. Prácticas culturales con enfoque étnico diferencial."]
[null,null,null,null,null,null,"TPGE(ELJ)-C12.Comunidades Negras, Afrocolombianos y Palenquera (NAP) - Pueblos y Comunidades Indígenas - Pueblo Rrom o Gitano Indirecto. Autonomía étnica y gobierno propio."]
[null,null,null,null,null,null,"TPGE(ELK)-C12.Comunidades Negras, Afrocolombianos y Palenquera (NAP) - Pueblos y Comunidades Indígenas - Pueblo Rrom o Gitano Indirecto. Educación diferencial."]
[null,null,null,null,null,null,"TPGE(ELL)-C12.Comunidades Negras, Afrocolombianos y Palenquera (NAP) - Pueblos y Comunidades Indígenas - Pueblo Rrom o Gitano Indirecto. Medicina ancestral y tradicional."]
[null,null,null,null,null,null,"TPGE(ELM)-C12.Comunidades Negras, Afrocolombianos y Palenquera (NAP) - Pueblos y Comunidades Indígenas - Pueblo Rrom o Gitano Indirecto. Economía propia."]
[null,null,null,null,null,null,"TPGE(ELN)-C12.Comunidades Negras, Afrocolombianos y Palenquera (NAP) - Pueblos y Comunidades Indígenas - Pueblo Rrom o Gitano Indirecto. Adecuación institucional y lucha contra el racismo y la discriminación."]
[null,null,null,null,null,null,"TPGE(ELO)-C12.Comunidades Negras, Afrocolombianos y Palenquera (NAP) - Pueblos y Comunidades Indígenas - Pueblo Rrom o Gitano Indirecto. Calidad de vida."]
[null,null,null,null,null,null,"TPGE(ELP)-C12.Comunidades Negras, Afrocolombianos y Palenquera (NAP) - Pueblos y Comunidades Indígenas - Pueblo Rrom o Gitano Indirecto. Mujeres."]
[null,null,null,null,null,null,"TPGE(EMA)-C13.Comunidades Negras, Afrocolombianos y Palenquera (NAP) - Comunidad Raizal - Pueblo Rrom o Gitano Directo. Prácticas culturales con enfoque étnico diferencial."]
[null,null,null,null,null,null,"TPGE(EMB)-C13.Comunidades Negras, Afrocolombianos y Palenquera (NAP) - Comunidad Raizal - Pueblo Rrom o Gitano Directo. Autonomía étnica y gobierno propio."]
[null,null,null,null,null,null,"TPGE(EMC)-C13.Comunidades Negras, Afrocolombianos y Palenquera (NAP) - Comunidad Raizal - Pueblo Rrom o Gitano Directo. Educación diferencial."]
[null,null,null,null,null,null,"TPGE(EMD)-C13.Comunidades Negras, Afrocolombianos y Palenquera (NAP) - Comunidad Raizal - Pueblo Rrom o Gitano Directo. Medicina ancestral y tradicional."]
[null,null,null,null,null,null,"TPGE(EME)-C13.Comunidades Negras, Afrocolombianos y Palenquera (NAP) - Comunidad Raizal - Pueblo Rrom o Gitano Directo. Economía propia."]
[null,null,null,null,null,null,"TPGE(EMF)-C13.Comunidades Negras, Afrocolombianos y Palenquera (NAP) - Comunidad Raizal - Pueblo Rrom o Gitano Directo. Adecuación institucional y lucha contra el racismo y la discriminación."]
[null,null,null,null,null,null,"TPGE(EMG)-C13.Comunidades Negras, Afrocolombianos y Palenquera (NAP) - Comunidad Raizal - Pueblo Rrom o Gitano Directo. Calidad de vida."]
[null,null,null,null,null,null,"TPGE(EMH)-C13.Comunidades Negras, Afrocolombianos y Palenquera (NAP) - Comunidad Raizal - Pueblo Rrom o Gitano Directo. Mujeres."]
[null,null,null,null,null,null,"TPGE(EMI)-C13.Comunidades Negras, Afrocolombianos y Palenquera (NAP) - Comunidad Raizal - Pueblo Rrom o Gitano Indirecto. Prácticas culturales con enfoque étnico diferencial."]
[null,null,null,null,null,null,"TPGE(EMJ)-C13.Comunidades Negras, Afrocolombianos y Palenquera (NAP) - Comunidad Raizal - Pueblo Rrom o Gitano Indirecto. Autonomía étnica y gobierno propio."]
[null,null,null,null,null,null,"TPGE(EMK)-C13.Comunidades Negras, Afrocolombianos y Palenquera (NAP) - Comunidad Raizal - Pueblo Rrom o Gitano Indirecto. Educación diferencial."]
[null,null,null,null,null,null,"TPGE(EML)-C13.Comunidades Negras, Afrocolombianos y Palenquera (NAP) - Comunidad Raizal - Pueblo Rrom o Gitano Indirecto. Medicina ancestral y tradicional."]
[null,null,null,null,null,null,"TPGE(EMM)-C13.Comunidades Negras, Afrocolombianos y Palenquera (NAP) - Comunidad Raizal - Pueblo Rrom o Gitano Indirecto. Economía propia."]
[null,null,null,null,null,null,"TPGE(EMN)-C13.Comunidades Negras, Afrocolombianos y Palenquera (NAP) - Comunidad Raizal - Pueblo Rrom o Gitano Indirecto. Adecuación institucional y lucha contra el racismo y la discriminación."]
[null,null,null,null,null,null,"TPGE(EMO)-C13.Comunidades Negras, Afrocolombianos y Palenquera (NAP) - Comunidad Raizal - Pueblo Rrom o Gitano Indirecto. Calidad de vida."]
[null,null,null,null,null,null,"TPGE(EMP)-C13.Comunidades Negras, Afrocolombianos y Palenquera (NAP) - Comunidad Raizal - Pueblo Rrom o Gitano Indirecto. Mujeres."]
[null,null,null,null,null,null,"TPGE(ENA)-C14.Comunidad Raizal - Pueblos y Comunidades Indígenas - Pueblo Rrom o Gitano Directo. Prácticas culturales con enfoque étnico diferencial."]
[null,null,null,null,null,null,"TPGE(ENB)-C14.Comunidad Raizal - Pueblos y Comunidades Indígenas - Pueblo Rrom o Gitano Directo. Autonomía étnica y gobierno propio."]
[null,null,null,null,null,null,"TPGE(ENC)-C14.Comunidad Raizal - Pueblos y Comunidades Indígenas - Pueblo Rrom o Gitano Directo. Educación diferencial."]
[null,null,null,null,null,null,"TPGE(END)-C14.Comunidad Raizal - Pueblos y Comunidades Indígenas - Pueblo Rrom o Gitano Directo. Medicina ancestral y tradicional."]
[null,null,null,null,null,null,"TPGE(ENE)-C14.Comunidad Raizal - Pueblos y Comunidades Indígenas - Pueblo Rrom o Gitano Directo. Economía propia."]
[null,null,null,null,null,null,"TPGE(ENF)-C14.Comunidad Raizal - Pueblos y Comunidades Indígenas - Pueblo Rrom o Gitano Directo. Adecuación institucional y lucha contra el racismo y la discriminación."]
[null,null,null,null,null,null,"TPGE(ENG)-C14.Comunidad Raizal - Pueblos y Comunidades Indígenas - Pueblo Rrom o Gitano Directo. Calidad de vida."]
[null,null,null,null,null,null,"TPGE(ENH)-C14.Comunidad Raizal - Pueblos y Comunidades Indígenas - Pueblo Rrom o Gitano Directo. Mujeres."]
[null,null,null,null,null,null,"TPGE(ENI)-C14.Comunidad Raizal - Pueblos y Comunidades Indígenas - Pueblo Rrom o Gitano Indirecto. Prácticas culturales con enfoque étnico diferencial."]
[null,null,null,null,null,null,"TPGE(ENJ)-C14.Comunidad Raizal - Pueblos y Comunidades Indígenas - Pueblo Rrom o Gitano Indirecto. Autonomía étnica y gobierno propio."]
[null,null,null,null,null,null,"TPGE(ENK)-C14.Comunidad Raizal - Pueblos y Comunidades Indígenas - Pueblo Rrom o Gitano Indirecto. Educación diferencial."]
[null,null,null,null,null,null,"TPGE(ENL)-C14.Comunidad Raizal - Pueblos y Comunidades Indígenas - Pueblo Rrom o Gitano Indirecto. Medicina ancestral y tradicional."]
[null,null,null,null,null,null,"TPGE(ENM)-C14.Comunidad Raizal - Pueblos y Comunidades Indígenas - Pueblo Rrom o Gitano Indirecto. Economía propia."]
[null,null,null,null,null,null,"TPGE(ENN)-C14.Comunidad Raizal - Pueblos y Comunidades Indígenas - Pueblo Rrom o Gitano Indirecto. Adecuación institucional y lucha contra el racismo y la discriminación."]
[null,null,null,null,null,null,"TPGE(ENO)-C14.Comunidad Raizal - Pueblos y Comunidades Indígenas - Pueblo Rrom o Gitano Indirecto. Calidad de vida."]
[null,null,null,null,null,null,"TPGE(ENP)-C14.Comunidad Raizal - Pueblos y Comunidades Indígenas - Pueblo Rrom o Gitano Indirecto. Mujeres."]
[null,null,null,null,null,null,"TPGE(EOA)-C15.Comunidades Negras, Afrocolombianos y Palenquera (NAP) - Comunidad Raizal - Pueblos y Comunidades Indígenas - Pueblo Rrom o Gitano Directo. Prácticas culturales con enfoque étnico diferencial."]
[null,null,null,null,null,null,"TPGE(EOB)-C15.Comunidades Negras, Afrocolombianos y Palenquera (NAP) - Comunidad Raizal - Pueblos y Comunidades Indígenas - Pueblo Rrom o Gitano Directo. Autonomía étnica y gobierno propio."]
[null,null,null,null,null,null,"TPGE(EOC)-C15.Comunidades Negras, Afrocolombianos y Palenquera (NAP) - Comunidad Raizal - Pueblos y Comunidades Indígenas - Pueblo Rrom o Gitano Directo. Educación diferencial."]
[null,null,null,null,null,null,"TPGE(EOD)-C15.Comunidades Negras, Afrocolombianos y Palenquera (NAP) - Comunidad Raizal - Pueblos y Comunidades Indígenas - Pueblo Rrom o Gitano Directo. Medicina ancestral y tradicional."]
[null,null,null,null,null,null,"TPGE(EOE)-C15.Comunidades Negras, Afrocolombianos y Palenquera (NAP) - Comunidad Raizal - Pueblos y Comunidades Indígenas - Pueblo Rrom o Gitano Directo. Economía propia."]
[null,null,null,null,null,null,"TPGE(EOF)-C15.Comunidades Negras, Afrocolombianos y Palenquera (NAP) - Comunidad Raizal - Pueblos y Comunidades Indígenas - Pueblo Rrom o Gitano Directo. Adecuación institucional y lucha contra el racismo y la discriminación."]
[null,null,null,null,null,null,"TPGE(EOG)-C15.Comunidades Negras, Afrocolombianos y Palenquera (NAP) - Comunidad Raizal - Pueblos y Comunidades Indígenas - Pueblo Rrom o Gitano Directo. Calidad de vida."]
[null,null,null,null,null,null,"TPGE(EOH)-C15.Comunidades Negras, Afrocolombianos y Palenquera (NAP) - Comunidad Raizal - Pueblos y Comunidades Indígenas - Pueblo Rrom o Gitano Directo. Mujeres."]
[null,null,null,null,null,null,"TPGE(EOI)-C15.Comunidades Negras, Afrocolombianos y Palenquera (NAP) - Comunidad Raizal - Pueblos y Comunidades Indígenas - Pueblo Rrom o Gitano Indirecto. Prácticas culturales con enfoque étnico diferencial."]
[null,null,null,null,null,null,"TPGE(EOJ)-C15.Comunidades Negras, Afrocolombianos y Palenquera (NAP) - Comunidad Raizal - Pueblos y Comunidades Indígenas - Pueblo Rrom o Gitano Indirecto. Autonomía étnica y gobierno propio."]
[null,null,null,null,null,null,"TPGE(EOK)-C15.Comunidades Negras, Afrocolombianos y Palenquera (NAP) - Comunidad Raizal - Pueblos y Comunidades Indígenas - Pueblo Rrom o Gitano Indirecto. Educación diferencial."]
[null,null,null,null,null,null,"TPGE(EOL)-C15.Comunidades Negras, Afrocolombianos y Palenquera (NAP) - Comunidad Raizal - Pueblos y Comunidades Indígenas - Pueblo Rrom o Gitano Indirecto. Medicina ancestral y tradicional."]
[null,null,null,null,null,null,"TPGE(EOM)-C15.Comunidades Negras, Afrocolombianos y Palenquera (NAP) - Comunidad Raizal - Pueblos y Comunidades Indígenas - Pueblo Rrom o Gitano Indirecto. Economía propia."]
[null,null,null,null,null,null,"TPGE(EON)-C15.Comunidades Negras, Afrocolombianos y Palenquera (NAP) - Comunidad Raizal - Pueblos y Comunidades Indígenas - Pueblo Rrom o Gitano Indirecto. Adecuación institucional y lucha contra el racismo y la discriminación."]
[null,null,null,null,null,null,"TPGE(EOO)-C15.Comunidades Negras, Afrocolombianos y Palenquera (NAP) - Comunidad Raizal - Pueblos y Comunidades Indígenas - Pueblo Rrom o Gitano Indirecto. Calidad de vida."]
[null,null,null,null,null,null,"TPGE(EOP)-C15.Comunidades Negras, Afrocolombianos y Palenquera (NAP) - Comunidad Raizal - Pueblos y Comunidades Indígenas - Pueblo Rrom o Gitano Indirecto. Mujeres."]